{"text_format":"3","workbook":"xlsx","n_sheets":6,"sheets":["Dasbor","Penjualan","Penghasilan","Pengeluaran","Pajak","Kategori"],"not_rendered":{"images":1,"defined_names":34},"read":"whole","date_system":"1900"}

{"sheet":"Dasbor","index":0,"n_rows":20,"n_cols":8,"rows_kept":20,"merged":[[0,2,0,4],[0,6,3,7],[5,1,5,7]]}
[null,"Laporan Laba Rugi","Untuk [Bulan atau Tahun] hingga [Hari-Bulan-Tahun]"]
[null,"Nama Perusahaan","Dinyatakan dalam 000"]
[null,"Margin Kotor Saat Ini [L/J]",{"$f":"IFERROR(IF(Total_Laba_Kotor=0,\"-\",Total_Laba_Kotor/Total_Pendapatan_Penjualan),\"-\")","v":"-"}]
[null,"Return on sales (ROS) saat ini [T/J]",{"$f":"IFERROR(IF(Laba_Bersih=0,\"-\",Laba_Bersih/Total_Pendapatan_Penjualan),\"-\")","v":"-"}]
[]
[null,"Jangan mengubah kategori di lembar kerja atau rumus akan rusak. Gunakan lembar kerja Kategori untuk menambahkan kategori dan memperbarui lembar kerja yang terkait dengan entri. Lembar kerja ini akan diperbarui secara otomatis."]
[null,"Ringkasan","Total Periode Sebelumnya","Total Anggaran","Total Saat Ini\nPeriode","Total Periode Saat Ini dari % Penjualan","Total % Perubahan dari Periode Sebelumnya","Total % Perubahan dari Anggaran"]
[null,"Total Pendapatan Penjualan [J]",{"$f":"SUMIFS(PendapatanPenjualan[Periode Sebelumnya],PendapatanPenjualan[Jenis Pendapatan],\"Pendapatan Penjualan\")","v":0},{"$f":"SUMIFS(PendapatanPenjualan[Anggaran],PendapatanPenjualan[Jenis Pendapatan],\"Pendapatan Penjualan\")","v":0},{"$f":"SUMIFS(PendapatanPenjualan[Periode Saat Ini],PendapatanPenjualan[Jenis Pendapatan],\"Pendapatan Penjualan\")","v":0},{"$f":"SUMIFS(PendapatanPenjualan[Periode Saat Ini dari % Penjualan],PendapatanPenjualan[Jenis Pendapatan],\"Pendapatan Penjualan\")","v":{"v":0,"d":"0.00%"}},{"$f":"SUMIFS(PendapatanPenjualan[% Perubahan dari Periode Sebelumnya],PendapatanPenjualan[Jenis Pendapatan],\"Pendapatan Penjualan\")","v":{"v":0,"d":"0.00%"}},{"$f":"SUMIFS(PendapatanPenjualan[% Perubahan dari Anggaran],PendapatanPenjualan[Jenis Pendapatan],\"Pendapatan Penjualan\")","v":{"v":0,"d":"0.00%"}}]
[null,"Total Biaya Penjualan [K]",{"$f":"SUMIFS(PendapatanPenjualan[Periode Sebelumnya],PendapatanPenjualan[Jenis Pendapatan],\"Biaya Penjualan\")","v":0},{"$f":"SUMIFS(PendapatanPenjualan[Anggaran],PendapatanPenjualan[Jenis Pendapatan],\"Biaya Penjualan\")","v":0},{"$f":"SUMIFS(PendapatanPenjualan[Periode Saat Ini],PendapatanPenjualan[Jenis Pendapatan],\"Biaya Penjualan\")","v":0},{"$f":"SUMIFS(PendapatanPenjualan[Periode Saat Ini dari % Penjualan],PendapatanPenjualan[Jenis Pendapatan],\"Biaya Penjualan\")","v":{"v":0,"d":"0.00%"}},{"$f":"SUMIFS(PendapatanPenjualan[% Perubahan dari Periode Sebelumnya],PendapatanPenjualan[Jenis Pendapatan],\"Biaya Penjualan\")","v":{"v":0,"d":"0.00%"}},{"$f":"SUMIFS(PendapatanPenjualan[% Perubahan dari Anggaran],PendapatanPenjualan[Jenis Pendapatan],\"Biaya Penjualan\")","v":{"v":0,"d":"0.00%"}}]
[null,"Total Pengeluaran Penjualan dan Pemasaran [M]",{"$f":"SUMIFS(PengeluaranOperasional[Periode Sebelumnya],PengeluaranOperasional[Tipe Pengeluaran],\"Penjualan dan Pemasaran\")","v":0},{"$f":"SUMIFS(PengeluaranOperasional[Anggaran],PengeluaranOperasional[Tipe Pengeluaran],\"Penjualan dan Pemasaran\")","v":0},{"$f":"SUMIFS(PengeluaranOperasional[Periode Saat Ini],PengeluaranOperasional[Tipe Pengeluaran],\"Penjualan dan Pemasaran\")","v":0},{"$f":"SUMIFS(PengeluaranOperasional[Periode Saat Ini dari % Penjualan],PengeluaranOperasional[Tipe Pengeluaran],\"Penjualan dan Pemasaran\")","v":{"v":0,"d":"0.00%"}},{"$f":"SUMIFS(PengeluaranOperasional[% Perubahan dari Periode Sebelumnya],PengeluaranOperasional[Tipe Pengeluaran],\"Penjualan dan Pemasaran\")","v":{"v":0,"d":"0.00%"}},{"$f":"SUMIFS(PengeluaranOperasional[% Perubahan dari Anggaran],PengeluaranOperasional[Tipe Pengeluaran],\"Penjualan dan Pemasaran\")","v":{"v":0,"d":"0.00%"}}]
[null,"Total Pengeluaran Riset dan Pengembangan [N]",{"$f":"SUMIFS(PengeluaranOperasional[Periode Sebelumnya],PengeluaranOperasional[Tipe Pengeluaran],\"Riset dan Pengembangan\")","v":0},{"$f":"SUMIFS(PengeluaranOperasional[Anggaran],PengeluaranOperasional[Tipe Pengeluaran],\"Riset dan Pengembangan\")","v":0},{"$f":"SUMIFS(PengeluaranOperasional[Periode Saat Ini],PengeluaranOperasional[Tipe Pengeluaran],\"Riset dan Pengembangan\")","v":0},{"$f":"SUMIFS(PengeluaranOperasional[Periode Saat Ini dari % Penjualan],PengeluaranOperasional[Tipe Pengeluaran],\"Riset dan Pengembangan\")","v":{"v":0,"d":"0.00%"}},{"$f":"SUMIFS(PengeluaranOperasional[% Perubahan dari Periode Sebelumnya],PengeluaranOperasional[Tipe Pengeluaran],\"Riset dan Pengembangan\")","v":{"v":0,"d":"0.00%"}},{"$f":"SUMIFS(PengeluaranOperasional[% Perubahan dari Anggaran],PengeluaranOperasional[Tipe Pengeluaran],\"Riset dan Pengembangan\")","v":{"v":0,"d":"0.00%"}}]
[null,"Total Pengeluaran Umum dan Administratif [O]",{"$f":"SUMIFS(PengeluaranOperasional[Periode Sebelumnya],PengeluaranOperasional[Tipe Pengeluaran],\"General and Adminstrative\")","v":0},{"$f":"SUMIFS(PengeluaranOperasional[Anggaran],PengeluaranOperasional[Tipe Pengeluaran],\"General and Adminstrative\")","v":0},{"$f":"SUMIFS(PengeluaranOperasional[Periode Saat Ini],PengeluaranOperasional[Tipe Pengeluaran],\"General and Adminstrative\")","v":0},{"$f":"SUMIFS(PengeluaranOperasional[Periode Saat Ini dari % Penjualan],PengeluaranOperasional[Tipe Pengeluaran],\"General and Adminstrative\")","v":{"v":0,"d":"0.00%"}},{"$f":"SUMIFS(PengeluaranOperasional[% Perubahan dari Periode Sebelumnya],PengeluaranOperasional[Tipe Pengeluaran],\"General and Adminstrative\")","v":{"v":0,"d":"0.00%"}},{"$f":"SUMIFS(PengeluaranOperasional[% Perubahan dari Anggaran],PengeluaranOperasional[Tipe Pengeluaran],\"General and Adminstrative\")","v":{"v":0,"d":"0.00%"}}]
[null,"Total Pengeluaran Operasional Lainnya [P]",{"$f":"PengeluaranOperasional[[#Totals],[Periode Sebelumnya]]-SUM(C10:C12)","v":0},{"$f":"PengeluaranOperasional[[#Totals],[Anggaran]]-SUM(D10:D12)","v":0},{"$f":"PengeluaranOperasional[[#Totals],[Periode Saat Ini]]-SUM(E10:E12)","v":0},{"$f":"PengeluaranOperasional[[#Totals],[Periode Saat Ini dari % Penjualan]]-SUM(F10:F12)","v":{"v":0,"d":"0.00%"}},{"$f":"PengeluaranOperasional[[#Totals],[% Perubahan dari Periode Sebelumnya]]-SUM(G10:G12)","v":{"v":0,"d":"0.00%"}},{"$f":"PengeluaranOperasional[[#Totals],[% Perubahan dari Anggaran]]-SUM(H10:H12)","v":{"v":0,"d":"0.00%"}}]
[null,"Penghasilan Lainnya [S]",{"$f":"Pendapatan[[#Totals],[Periode Sebelumnya]]","v":0},{"$f":"Pendapatan[[#Totals],[Anggaran]]","v":0},{"$f":"Pendapatan[[#Totals],[Periode Saat Ini]]","v":0},{"$f":"Pendapatan[[#Totals],[Periode Saat Ini dari % Penjualan]]","v":{"v":0,"d":"0.00%"}},{"$f":"Pendapatan[[#Totals],[% Perubahan dari Periode Sebelumnya]]","v":{"v":0,"d":"0.00%"}},{"$f":"Pendapatan[[#Totals],[% Perubahan dari Anggaran]]","v":{"v":0,"d":"0.00%"}}]
[null,"Total Pajak [T]",{"$f":"Pajak[[#Totals],[Periode Sebelumnya]]","v":0},{"$f":"Pajak[[#Totals],[Anggaran]]","v":0},{"$f":"Pajak[[#Totals],[Periode Saat Ini]]","v":0},{"$f":"Pajak[[#Totals],[Periode Saat Ini dari % Penjualan]]","v":{"v":0,"d":"0.00%"}},{"$f":"Pajak[[#Totals],[% Perubahan dari Periode Sebelumnya]]","v":{"v":0,"d":"0.00%"}},{"$f":"Pajak[[#Totals],[% Perubahan dari Anggaran]]","v":{"v":0,"d":"0.00%"}}]
[]
[null,"Laba Kotor [L=J-K]",{"$f":"IFERROR(C8-C9,\"-\")","v":0},{"$f":"IFERROR(D8-D9,\"-\")","v":0},{"$f":"IFERROR(Total_Pendapatan_Penjualan-Total_Biaya_Penjualan,\"-\")","v":0},{"$f":"IFERROR(IF(Total_Pendapatan_Penjualan=0,\"0.00%\",Total_Laba_Kotor/Total_Pendapatan_Penjualan),\"-\")","v":"0.00%"},{"$f":"IFERROR(IF(C17=Total_Laba_Kotor,0,IF(Total_Laba_Kotor>C17,ABS((Total_Laba_Kotor/C17)-1),IF(AND(Total_Laba_Kotor<C17,C17<0),-((Total_Laba_Kotor/C17)-1),(Total_Laba_Kotor/C17)-1))),\"-\")","v":{"v":0,"d":"0.00%"}},{"$f":"IFERROR(IF(D17=Total_Laba_Kotor,0,IF(Total_Laba_Kotor>D17,ABS((Total_Laba_Kotor/D17)-1),IF(AND(Total_Laba_Kotor<D17,D17<0),-((Total_Laba_Kotor/D17)-1),(Total_Laba_Kotor/D17)-1))),\"-\")","v":{"v":0,"d":"0.00%"}}]
[null,"Total Pengeluaran Operasional [Q=M+N+O+P]",{"$f":"IFERROR(C10+C11+C12+C13,\"-\")","v":0},{"$f":"IFERROR(D10+D11+D12+D13,\"-\")","v":0},{"$f":"IFERROR(Total_Penjualan_dan_Pemasaran+Total_Riset_dan_Pengembangan+Total_Umum_dan_Administrasi+Total_Pengeluaran_Lainnya,\"-\")","v":0},{"$f":"IFERROR(IF(Total_Pendapatan_Penjualan=0,\"0.00%\",Total_Pengeluaran_Operasional/Total_Pendapatan_Penjualan),\"-\")","v":"0.00%"},{"$f":"IFERROR(IF(C18=Total_Pengeluaran_Operasional,0,IF(Total_Pengeluaran_Operasional>C18,ABS((Total_Pengeluaran_Operasional/C18)-1),IF(AND(Total_Pengeluaran_Operasional<C18,C18<0),-((Total_Pengeluaran_Operasional/C18)-1),(Total_Pengeluaran_Operasional/C18)-1))),\"-\")","v":{"v":0,"d":"0.00%"}},{"$f":"IFERROR(IF(D18=Total_Pengeluaran_Operasional,0,IF(Total_Pengeluaran_Operasional>D18,ABS((Total_Pengeluaran_Operasional/D18)-1),IF(AND(Total_Pengeluaran_Operasional<D18,D18<0),-((Total_Pengeluaran_Operasional/D18)-1),(Total_Pengeluaran_Operasional/D18)-1))),\"-\")","v":{"v":0,"d":"0.00%"}}]
[null,"Penghasilan Dari Operasional [R=L-Q]",{"$f":"IFERROR(C17-C18,\"-\")","v":0},{"$f":"IFERROR(D17-D18,\"-\")","v":0},{"$f":"IFERROR(Total_Laba_Kotor-Total_Pengeluaran_Operasional,\"-\")","v":0},{"$f":"IFERROR(IF(Total_Pendapatan_Penjualan=0,\"0.00%\",Total_Penghasilan_Operasional/Total_Pendapatan_Penjualan),\"-\")","v":"0.00%"},{"$f":"IFERROR(IF(C19=Total_Penghasilan_Operasional,0,IF(Total_Penghasilan_Operasional>C19,ABS((Total_Penghasilan_Operasional/C19)-1),IF(AND(Total_Penghasilan_Operasional<C19,C19<0),-((Total_Penghasilan_Operasional/C19)-1),(Total_Penghasilan_Operasional/C19)-1))),\"-\")","v":{"v":0,"d":"0.00%"}},{"$f":"IFERROR(IF(D19=Total_Penghasilan_Operasional,0,IF(Total_Penghasilan_Operasional>D19,ABS((Total_Penghasilan_Operasional/D19)-1),IF(AND(Total_Penghasilan_Operasional<D19,D19<0),-((Total_Penghasilan_Operasional/D19)-1),(Total_Penghasilan_Operasional/D19)-1))),\"-\")","v":{"v":0,"d":"0.00%"}}]
[null,"Laba Bersih [U=R+S-T]",{"$f":"IFERROR(C19+C14-C15,\"-\")","v":0},{"$f":"IFERROR(D19+D14-D15,\"-\")","v":0},{"$f":"Total_Penghasilan_Operasional+Total_Penghasilan_Lainnya-Total_Pajak","v":0},{"$f":"IFERROR(IF(Total_Pendapatan_Penjualan=0,\"0.00%\",Laba_Bersih/Total_Pendapatan_Penjualan),\"-\")","v":"0.00%"},{"$f":"IFERROR(IF(C20=Laba_Bersih,0,IF(Laba_Bersih>C20,ABS((Laba_Bersih/C20)-1),IF(AND(Laba_Bersih<C20,C20<0),-((Laba_Bersih/C20)-1),(Laba_Bersih/C20)-1))),\"-\")","v":{"v":0,"d":"0.00%"}},{"$f":"IFERROR(IF(D20=Laba_Bersih,0,IF(Laba_Bersih>D20,ABS((Laba_Bersih/D20)-1),IF(AND(Laba_Bersih<D20,D20<0),-((Laba_Bersih/D20)-1),(Laba_Bersih/D20)-1))),\"-\")","v":{"v":0,"d":"0.00%"}}]

{"sheet":"Penjualan","index":1,"n_rows":13,"n_cols":9,"rows_kept":13,"merged":[[0,7,2,8]]}
[null,{"$f":"Judul_Buku_Kerja","v":"Laporan Laba Rugi"}]
[null,{"$f":"Nama_Perusahaan","v":"Nama Perusahaan"},"Dinyatakan dalam 000"]
[null,"Pendapatan Penjualan",{"$f":"IFERROR(Pendapatan_Penjualan,\"-\")","v":0}]
[null,"Jenis Pendapatan","Deskripsi","Periode Sebelumnya","Anggaran","Periode Saat Ini","Periode Saat Ini dari % Penjualan","% Perubahan dari Periode Sebelumnya","% Perubahan dari Anggaran"]
[null,"Pendapatan Penjualan","Produk/Layanan 1",{"$nulls":3},{"$f":"IFERROR(IF(PendapatanPenjualan[[#Totals],[Periode Saat Ini]]=0,\"-\",PendapatanPenjualan[[#This Row],[Periode Saat Ini]]/Pendapatan_Penjualan),\"-\")","v":"-"},{"$f":"IFERROR(IF(PendapatanPenjualan[[#This Row],[Periode Sebelumnya]]=PendapatanPenjualan[[#This Row],[Periode Saat Ini]],0,IF(PendapatanPenjualan[[#This Row],[Periode Saat Ini]]>PendapatanPenjualan[[#This Row],[Periode Sebelumnya]],ABS((PendapatanPenjualan[[#This Row],[Periode Saat Ini]]/PendapatanPenjualan[[#This Row],[Periode Sebelumnya]])-1),IF(AND(PendapatanPenjualan[[#This Row],[Periode Saat Ini]]<PendapatanPenjualan[[#This Row],[Periode Sebelumnya]],PendapatanPenjualan[[#This Row],[Periode Sebelumnya]]<0),-((PendapatanPenjualan[[#This Row],[Periode Saat Ini]]/PendapatanPenjualan[[#This Row],[Periode Sebelumnya]])-1),(PendapatanPenjualan[[#This Row],[Periode Saat Ini]]/PendapatanPenjualan[[#This Row],[Periode Sebelumnya]])-1))),\"-\")","v":{"v":0,"d":"0.00%"}},{"$f":"IFERROR(IF(PendapatanPenjualan[[#This Row],[Anggaran]]=PendapatanPenjualan[[#This Row],[Periode Saat Ini]],0,IF(PendapatanPenjualan[[#This Row],[Periode Saat Ini]]>PendapatanPenjualan[[#This Row],[Anggaran]],ABS((PendapatanPenjualan[[#This Row],[Periode Saat Ini]]/PendapatanPenjualan[[#This Row],[Anggaran]])-1),IF(AND(PendapatanPenjualan[[#This Row],[Periode Saat Ini]]<PendapatanPenjualan[[#This Row],[Anggaran]],PendapatanPenjualan[[#This Row],[Anggaran]]<0),-((PendapatanPenjualan[[#This Row],[Periode Saat Ini]]/PendapatanPenjualan[[#This Row],[Anggaran]])-1),(PendapatanPenjualan[[#This Row],[Periode Saat Ini]]/PendapatanPenjualan[[#This Row],[Anggaran]])-1))),\"-\")","v":{"v":0,"d":"0.00%"}}]
[null,"Pendapatan Penjualan","Produk/Layanan 2",{"$nulls":3},{"$f":"IFERROR(IF(PendapatanPenjualan[[#Totals],[Periode Saat Ini]]=0,\"-\",PendapatanPenjualan[[#This Row],[Periode Saat Ini]]/Pendapatan_Penjualan),\"-\")","v":"-"},{"$f":"IFERROR(IF(PendapatanPenjualan[[#This Row],[Periode Sebelumnya]]=PendapatanPenjualan[[#This Row],[Periode Saat Ini]],0,IF(PendapatanPenjualan[[#This Row],[Periode Saat Ini]]>PendapatanPenjualan[[#This Row],[Periode Sebelumnya]],ABS((PendapatanPenjualan[[#This Row],[Periode Saat Ini]]/PendapatanPenjualan[[#This Row],[Periode Sebelumnya]])-1),IF(AND(PendapatanPenjualan[[#This Row],[Periode Saat Ini]]<PendapatanPenjualan[[#This Row],[Periode Sebelumnya]],PendapatanPenjualan[[#This Row],[Periode Sebelumnya]]<0),-((PendapatanPenjualan[[#This Row],[Periode Saat Ini]]/PendapatanPenjualan[[#This Row],[Periode Sebelumnya]])-1),(PendapatanPenjualan[[#This Row],[Periode Saat Ini]]/PendapatanPenjualan[[#This Row],[Periode Sebelumnya]])-1))),\"-\")","v":{"v":0,"d":"0.00%"}},{"$f":"IFERROR(IF(PendapatanPenjualan[[#This Row],[Anggaran]]=PendapatanPenjualan[[#This Row],[Periode Saat Ini]],0,IF(PendapatanPenjualan[[#This Row],[Periode Saat Ini]]>PendapatanPenjualan[[#This Row],[Anggaran]],ABS((PendapatanPenjualan[[#This Row],[Periode Saat Ini]]/PendapatanPenjualan[[#This Row],[Anggaran]])-1),IF(AND(PendapatanPenjualan[[#This Row],[Periode Saat Ini]]<PendapatanPenjualan[[#This Row],[Anggaran]],PendapatanPenjualan[[#This Row],[Anggaran]]<0),-((PendapatanPenjualan[[#This Row],[Periode Saat Ini]]/PendapatanPenjualan[[#This Row],[Anggaran]])-1),(PendapatanPenjualan[[#This Row],[Periode Saat Ini]]/PendapatanPenjualan[[#This Row],[Anggaran]])-1))),\"-\")","v":{"v":0,"d":"0.00%"}}]
[null,"Pendapatan Penjualan","Produk/Layanan 3",{"$nulls":3},{"$f":"IFERROR(IF(PendapatanPenjualan[[#Totals],[Periode Saat Ini]]=0,\"-\",PendapatanPenjualan[[#This Row],[Periode Saat Ini]]/Pendapatan_Penjualan),\"-\")","v":"-"},{"$f":"IFERROR(IF(PendapatanPenjualan[[#This Row],[Periode Sebelumnya]]=PendapatanPenjualan[[#This Row],[Periode Saat Ini]],0,IF(PendapatanPenjualan[[#This Row],[Periode Saat Ini]]>PendapatanPenjualan[[#This Row],[Periode Sebelumnya]],ABS((PendapatanPenjualan[[#This Row],[Periode Saat Ini]]/PendapatanPenjualan[[#This Row],[Periode Sebelumnya]])-1),IF(AND(PendapatanPenjualan[[#This Row],[Periode Saat Ini]]<PendapatanPenjualan[[#This Row],[Periode Sebelumnya]],PendapatanPenjualan[[#This Row],[Periode Sebelumnya]]<0),-((PendapatanPenjualan[[#This Row],[Periode Saat Ini]]/PendapatanPenjualan[[#This Row],[Periode Sebelumnya]])-1),(PendapatanPenjualan[[#This Row],[Periode Saat Ini]]/PendapatanPenjualan[[#This Row],[Periode Sebelumnya]])-1))),\"-\")","v":{"v":0,"d":"0.00%"}},{"$f":"IFERROR(IF(PendapatanPenjualan[[#This Row],[Anggaran]]=PendapatanPenjualan[[#This Row],[Periode Saat Ini]],0,IF(PendapatanPenjualan[[#This Row],[Periode Saat Ini]]>PendapatanPenjualan[[#This Row],[Anggaran]],ABS((PendapatanPenjualan[[#This Row],[Periode Saat Ini]]/PendapatanPenjualan[[#This Row],[Anggaran]])-1),IF(AND(PendapatanPenjualan[[#This Row],[Periode Saat Ini]]<PendapatanPenjualan[[#This Row],[Anggaran]],PendapatanPenjualan[[#This Row],[Anggaran]]<0),-((PendapatanPenjualan[[#This Row],[Periode Saat Ini]]/PendapatanPenjualan[[#This Row],[Anggaran]])-1),(PendapatanPenjualan[[#This Row],[Periode Saat Ini]]/PendapatanPenjualan[[#This Row],[Anggaran]])-1))),\"-\")","v":{"v":0,"d":"0.00%"}}]
[null,"Pendapatan Penjualan","Produk/Layanan 4",{"$nulls":3},{"$f":"IFERROR(IF(PendapatanPenjualan[[#Totals],[Periode Saat Ini]]=0,\"-\",PendapatanPenjualan[[#This Row],[Periode Saat Ini]]/Pendapatan_Penjualan),\"-\")","v":"-"},{"$f":"IFERROR(IF(PendapatanPenjualan[[#This Row],[Periode Sebelumnya]]=PendapatanPenjualan[[#This Row],[Periode Saat Ini]],0,IF(PendapatanPenjualan[[#This Row],[Periode Saat Ini]]>PendapatanPenjualan[[#This Row],[Periode Sebelumnya]],ABS((PendapatanPenjualan[[#This Row],[Periode Saat Ini]]/PendapatanPenjualan[[#This Row],[Periode Sebelumnya]])-1),IF(AND(PendapatanPenjualan[[#This Row],[Periode Saat Ini]]<PendapatanPenjualan[[#This Row],[Periode Sebelumnya]],PendapatanPenjualan[[#This Row],[Periode Sebelumnya]]<0),-((PendapatanPenjualan[[#This Row],[Periode Saat Ini]]/PendapatanPenjualan[[#This Row],[Periode Sebelumnya]])-1),(PendapatanPenjualan[[#This Row],[Periode Saat Ini]]/PendapatanPenjualan[[#This Row],[Periode Sebelumnya]])-1))),\"-\")","v":{"v":0,"d":"0.00%"}},{"$f":"IFERROR(IF(PendapatanPenjualan[[#This Row],[Anggaran]]=PendapatanPenjualan[[#This Row],[Periode Saat Ini]],0,IF(PendapatanPenjualan[[#This Row],[Periode Saat Ini]]>PendapatanPenjualan[[#This Row],[Anggaran]],ABS((PendapatanPenjualan[[#This Row],[Periode Saat Ini]]/PendapatanPenjualan[[#This Row],[Anggaran]])-1),IF(AND(PendapatanPenjualan[[#This Row],[Periode Saat Ini]]<PendapatanPenjualan[[#This Row],[Anggaran]],PendapatanPenjualan[[#This Row],[Anggaran]]<0),-((PendapatanPenjualan[[#This Row],[Periode Saat Ini]]/PendapatanPenjualan[[#This Row],[Anggaran]])-1),(PendapatanPenjualan[[#This Row],[Periode Saat Ini]]/PendapatanPenjualan[[#This Row],[Anggaran]])-1))),\"-\")","v":{"v":0,"d":"0.00%"}}]
[null,"Biaya Penjualan","Produk/Layanan 1",{"$nulls":3},{"$f":"IFERROR(IF(PendapatanPenjualan[[#Totals],[Periode Saat Ini]]=0,\"-\",PendapatanPenjualan[[#This Row],[Periode Saat Ini]]/Pendapatan_Penjualan),\"-\")","v":"-"},{"$f":"IFERROR(IF(PendapatanPenjualan[[#This Row],[Periode Sebelumnya]]=PendapatanPenjualan[[#This Row],[Periode Saat Ini]],0,IF(PendapatanPenjualan[[#This Row],[Periode Saat Ini]]>PendapatanPenjualan[[#This Row],[Periode Sebelumnya]],ABS((PendapatanPenjualan[[#This Row],[Periode Saat Ini]]/PendapatanPenjualan[[#This Row],[Periode Sebelumnya]])-1),IF(AND(PendapatanPenjualan[[#This Row],[Periode Saat Ini]]<PendapatanPenjualan[[#This Row],[Periode Sebelumnya]],PendapatanPenjualan[[#This Row],[Periode Sebelumnya]]<0),-((PendapatanPenjualan[[#This Row],[Periode Saat Ini]]/PendapatanPenjualan[[#This Row],[Periode Sebelumnya]])-1),(PendapatanPenjualan[[#This Row],[Periode Saat Ini]]/PendapatanPenjualan[[#This Row],[Periode Sebelumnya]])-1))),\"-\")","v":{"v":0,"d":"0.00%"}},{"$f":"IFERROR(IF(PendapatanPenjualan[[#This Row],[Anggaran]]=PendapatanPenjualan[[#This Row],[Periode Saat Ini]],0,IF(PendapatanPenjualan[[#This Row],[Periode Saat Ini]]>PendapatanPenjualan[[#This Row],[Anggaran]],ABS((PendapatanPenjualan[[#This Row],[Periode Saat Ini]]/PendapatanPenjualan[[#This Row],[Anggaran]])-1),IF(AND(PendapatanPenjualan[[#This Row],[Periode Saat Ini]]<PendapatanPenjualan[[#This Row],[Anggaran]],PendapatanPenjualan[[#This Row],[Anggaran]]<0),-((PendapatanPenjualan[[#This Row],[Periode Saat Ini]]/PendapatanPenjualan[[#This Row],[Anggaran]])-1),(PendapatanPenjualan[[#This Row],[Periode Saat Ini]]/PendapatanPenjualan[[#This Row],[Anggaran]])-1))),\"-\")","v":{"v":0,"d":"0.00%"}}]
[null,"Biaya Penjualan","Produk/Layanan 2",{"$nulls":3},{"$f":"IFERROR(IF(PendapatanPenjualan[[#Totals],[Periode Saat Ini]]=0,\"-\",PendapatanPenjualan[[#This Row],[Periode Saat Ini]]/Pendapatan_Penjualan),\"-\")","v":"-"},{"$f":"IFERROR(IF(PendapatanPenjualan[[#This Row],[Periode Sebelumnya]]=PendapatanPenjualan[[#This Row],[Periode Saat Ini]],0,IF(PendapatanPenjualan[[#This Row],[Periode Saat Ini]]>PendapatanPenjualan[[#This Row],[Periode Sebelumnya]],ABS((PendapatanPenjualan[[#This Row],[Periode Saat Ini]]/PendapatanPenjualan[[#This Row],[Periode Sebelumnya]])-1),IF(AND(PendapatanPenjualan[[#This Row],[Periode Saat Ini]]<PendapatanPenjualan[[#This Row],[Periode Sebelumnya]],PendapatanPenjualan[[#This Row],[Periode Sebelumnya]]<0),-((PendapatanPenjualan[[#This Row],[Periode Saat Ini]]/PendapatanPenjualan[[#This Row],[Periode Sebelumnya]])-1),(PendapatanPenjualan[[#This Row],[Periode Saat Ini]]/PendapatanPenjualan[[#This Row],[Periode Sebelumnya]])-1))),\"-\")","v":{"v":0,"d":"0.00%"}},{"$f":"IFERROR(IF(PendapatanPenjualan[[#This Row],[Anggaran]]=PendapatanPenjualan[[#This Row],[Periode Saat Ini]],0,IF(PendapatanPenjualan[[#This Row],[Periode Saat Ini]]>PendapatanPenjualan[[#This Row],[Anggaran]],ABS((PendapatanPenjualan[[#This Row],[Periode Saat Ini]]/PendapatanPenjualan[[#This Row],[Anggaran]])-1),IF(AND(PendapatanPenjualan[[#This Row],[Periode Saat Ini]]<PendapatanPenjualan[[#This Row],[Anggaran]],PendapatanPenjualan[[#This Row],[Anggaran]]<0),-((PendapatanPenjualan[[#This Row],[Periode Saat Ini]]/PendapatanPenjualan[[#This Row],[Anggaran]])-1),(PendapatanPenjualan[[#This Row],[Periode Saat Ini]]/PendapatanPenjualan[[#This Row],[Anggaran]])-1))),\"-\")","v":{"v":0,"d":"0.00%"}}]
[null,"Biaya Penjualan","Produk/Layanan 3",{"$nulls":3},{"$f":"IFERROR(IF(PendapatanPenjualan[[#Totals],[Periode Saat Ini]]=0,\"-\",PendapatanPenjualan[[#This Row],[Periode Saat Ini]]/Pendapatan_Penjualan),\"-\")","v":"-"},{"$f":"IFERROR(IF(PendapatanPenjualan[[#This Row],[Periode Sebelumnya]]=PendapatanPenjualan[[#This Row],[Periode Saat Ini]],0,IF(PendapatanPenjualan[[#This Row],[Periode Saat Ini]]>PendapatanPenjualan[[#This Row],[Periode Sebelumnya]],ABS((PendapatanPenjualan[[#This Row],[Periode Saat Ini]]/PendapatanPenjualan[[#This Row],[Periode Sebelumnya]])-1),IF(AND(PendapatanPenjualan[[#This Row],[Periode Saat Ini]]<PendapatanPenjualan[[#This Row],[Periode Sebelumnya]],PendapatanPenjualan[[#This Row],[Periode Sebelumnya]]<0),-((PendapatanPenjualan[[#This Row],[Periode Saat Ini]]/PendapatanPenjualan[[#This Row],[Periode Sebelumnya]])-1),(PendapatanPenjualan[[#This Row],[Periode Saat Ini]]/PendapatanPenjualan[[#This Row],[Periode Sebelumnya]])-1))),\"-\")","v":{"v":0,"d":"0.00%"}},{"$f":"IFERROR(IF(PendapatanPenjualan[[#This Row],[Anggaran]]=PendapatanPenjualan[[#This Row],[Periode Saat Ini]],0,IF(PendapatanPenjualan[[#This Row],[Periode Saat Ini]]>PendapatanPenjualan[[#This Row],[Anggaran]],ABS((PendapatanPenjualan[[#This Row],[Periode Saat Ini]]/PendapatanPenjualan[[#This Row],[Anggaran]])-1),IF(AND(PendapatanPenjualan[[#This Row],[Periode Saat Ini]]<PendapatanPenjualan[[#This Row],[Anggaran]],PendapatanPenjualan[[#This Row],[Anggaran]]<0),-((PendapatanPenjualan[[#This Row],[Periode Saat Ini]]/PendapatanPenjualan[[#This Row],[Anggaran]])-1),(PendapatanPenjualan[[#This Row],[Periode Saat Ini]]/PendapatanPenjualan[[#This Row],[Anggaran]])-1))),\"-\")","v":{"v":0,"d":"0.00%"}}]
[null,"Biaya Penjualan","Produk/Layanan 4",{"$nulls":3},{"$f":"IFERROR(IF(PendapatanPenjualan[[#Totals],[Periode Saat Ini]]=0,\"-\",PendapatanPenjualan[[#This Row],[Periode Saat Ini]]/Pendapatan_Penjualan),\"-\")","v":"-"},{"$f":"IFERROR(IF(PendapatanPenjualan[[#This Row],[Periode Sebelumnya]]=PendapatanPenjualan[[#This Row],[Periode Saat Ini]],0,IF(PendapatanPenjualan[[#This Row],[Periode Saat Ini]]>PendapatanPenjualan[[#This Row],[Periode Sebelumnya]],ABS((PendapatanPenjualan[[#This Row],[Periode Saat Ini]]/PendapatanPenjualan[[#This Row],[Periode Sebelumnya]])-1),IF(AND(PendapatanPenjualan[[#This Row],[Periode Saat Ini]]<PendapatanPenjualan[[#This Row],[Periode Sebelumnya]],PendapatanPenjualan[[#This Row],[Periode Sebelumnya]]<0),-((PendapatanPenjualan[[#This Row],[Periode Saat Ini]]/PendapatanPenjualan[[#This Row],[Periode Sebelumnya]])-1),(PendapatanPenjualan[[#This Row],[Periode Saat Ini]]/PendapatanPenjualan[[#This Row],[Periode Sebelumnya]])-1))),\"-\")","v":{"v":0,"d":"0.00%"}},{"$f":"IFERROR(IF(PendapatanPenjualan[[#This Row],[Anggaran]]=PendapatanPenjualan[[#This Row],[Periode Saat Ini]],0,IF(PendapatanPenjualan[[#This Row],[Periode Saat Ini]]>PendapatanPenjualan[[#This Row],[Anggaran]],ABS((PendapatanPenjualan[[#This Row],[Periode Saat Ini]]/PendapatanPenjualan[[#This Row],[Anggaran]])-1),IF(AND(PendapatanPenjualan[[#This Row],[Periode Saat Ini]]<PendapatanPenjualan[[#This Row],[Anggaran]],PendapatanPenjualan[[#This Row],[Anggaran]]<0),-((PendapatanPenjualan[[#This Row],[Periode Saat Ini]]/PendapatanPenjualan[[#This Row],[Anggaran]])-1),(PendapatanPenjualan[[#This Row],[Periode Saat Ini]]/PendapatanPenjualan[[#This Row],[Anggaran]])-1))),\"-\")","v":{"v":0,"d":"0.00%"}}]
[null,"Total Pendapatan Penjualan",null,{"$f":"SUBTOTAL(109,PendapatanPenjualan[Periode Sebelumnya])","v":0},{"$f":"SUBTOTAL(109,PendapatanPenjualan[Anggaran])","v":0},{"$f":"SUBTOTAL(109,PendapatanPenjualan[Periode Saat Ini])","v":0},{"$f":"SUBTOTAL(109,PendapatanPenjualan[Periode Saat Ini dari % Penjualan])","v":{"v":0,"d":"0.00%"}},{"$f":"SUBTOTAL(109,PendapatanPenjualan[% Perubahan dari Periode Sebelumnya])","v":{"v":0,"d":"0.00%"}},{"$f":"SUBTOTAL(109,PendapatanPenjualan[% Perubahan dari Anggaran])","v":{"v":0,"d":"0.00%"}}]

{"sheet":"Penghasilan","index":2,"n_rows":7,"n_cols":9,"rows_kept":7,"merged":[[0,7,2,8]]}
[null,{"$f":"Judul_Buku_Kerja","v":"Laporan Laba Rugi"}]
[null,{"$f":"Nama_Perusahaan","v":"Nama Perusahaan"},"Dinyatakan dalam 000"]
[null,"Penghasilan",{"$f":"IFERROR(Pendapatan[[#Totals],[Periode Saat Ini]],\"-\")","v":0}]
[null,"Jenis Penghasilan","Deskripsi","Periode Sebelumnya","Anggaran","Periode Saat Ini","Periode Saat Ini dari % Penjualan","% Perubahan dari Periode Sebelumnya","% Perubahan dari Anggaran"]
[null,"Penghasilan","Penghasilan Lainnya",{"$nulls":3},{"$f":"IFERROR(IF(Pendapatan_Penjualan=0,\"-\",Pendapatan[[#This Row],[Periode Saat Ini]]/Pendapatan_Penjualan),\"-\")","v":"-"},{"$f":"IFERROR(IF(Pendapatan[[#This Row],[Periode Sebelumnya]]=Pendapatan[[#This Row],[Periode Saat Ini]],0,IF(Pendapatan[[#This Row],[Periode Saat Ini]]>Pendapatan[[#This Row],[Periode Sebelumnya]],ABS((Pendapatan[[#This Row],[Periode Saat Ini]]/Pendapatan[[#This Row],[Periode Sebelumnya]])-1),IF(AND(Pendapatan[[#This Row],[Periode Saat Ini]]<Pendapatan[[#This Row],[Periode Sebelumnya]],Pendapatan[[#This Row],[Periode Sebelumnya]]<0),-((Pendapatan[[#This Row],[Periode Saat Ini]]/Pendapatan[[#This Row],[Periode Sebelumnya]])-1),(Pendapatan[[#This Row],[Periode Saat Ini]]/Pendapatan[[#This Row],[Periode Sebelumnya]])-1))),\"-\")","v":{"v":0,"d":"0.00%"}},{"$f":"IFERROR(IF(Pendapatan[[#This Row],[Anggaran]]=Pendapatan[[#This Row],[Periode Saat Ini]],0,IF(Pendapatan[[#This Row],[Periode Saat Ini]]>Pendapatan[[#This Row],[Anggaran]],ABS((Pendapatan[[#This Row],[Periode Saat Ini]]/Pendapatan[[#This Row],[Anggaran]])-1),IF(AND(Pendapatan[[#This Row],[Periode Saat Ini]]<Pendapatan[[#This Row],[Anggaran]],Pendapatan[[#This Row],[Anggaran]]<0),-((Pendapatan[[#This Row],[Periode Saat Ini]]/Pendapatan[[#This Row],[Anggaran]])-1),(Pendapatan[[#This Row],[Periode Saat Ini]]/Pendapatan[[#This Row],[Anggaran]])-1))),\"-\")","v":{"v":0,"d":"0.00%"}}]
[{"$nulls":6},{"$f":"IFERROR(IF(Pendapatan_Penjualan=0,\"-\",Pendapatan[[#This Row],[Periode Saat Ini]]/Pendapatan_Penjualan),\"-\")","v":"-"},{"$f":"IFERROR(IF(Pendapatan[[#This Row],[Periode Sebelumnya]]=Pendapatan[[#This Row],[Periode Saat Ini]],0,IF(Pendapatan[[#This Row],[Periode Saat Ini]]>Pendapatan[[#This Row],[Periode Sebelumnya]],ABS((Pendapatan[[#This Row],[Periode Saat Ini]]/Pendapatan[[#This Row],[Periode Sebelumnya]])-1),IF(AND(Pendapatan[[#This Row],[Periode Saat Ini]]<Pendapatan[[#This Row],[Periode Sebelumnya]],Pendapatan[[#This Row],[Periode Sebelumnya]]<0),-((Pendapatan[[#This Row],[Periode Saat Ini]]/Pendapatan[[#This Row],[Periode Sebelumnya]])-1),(Pendapatan[[#This Row],[Periode Saat Ini]]/Pendapatan[[#This Row],[Periode Sebelumnya]])-1))),\"-\")","v":{"v":0,"d":"0.00%"}},{"$f":"IFERROR(IF(Pendapatan[[#This Row],[Anggaran]]=Pendapatan[[#This Row],[Periode Saat Ini]],0,IF(Pendapatan[[#This Row],[Periode Saat Ini]]>Pendapatan[[#This Row],[Anggaran]],ABS((Pendapatan[[#This Row],[Periode Saat Ini]]/Pendapatan[[#This Row],[Anggaran]])-1),IF(AND(Pendapatan[[#This Row],[Periode Saat Ini]]<Pendapatan[[#This Row],[Anggaran]],Pendapatan[[#This Row],[Anggaran]]<0),-((Pendapatan[[#This Row],[Periode Saat Ini]]/Pendapatan[[#This Row],[Anggaran]])-1),(Pendapatan[[#This Row],[Periode Saat Ini]]/Pendapatan[[#This Row],[Anggaran]])-1))),\"-\")","v":{"v":0,"d":"0.00%"}}]
[null,"Total Penghasilan Penjualan",null,{"$f":"SUBTOTAL(109,Pendapatan[Periode Sebelumnya])","v":0},{"$f":"SUBTOTAL(109,Pendapatan[Anggaran])","v":0},{"$f":"SUBTOTAL(109,Pendapatan[Periode Saat Ini])","v":0},{"$f":"SUBTOTAL(109,Pendapatan[Periode Saat Ini dari % Penjualan])","v":{"v":0,"d":"0.00%"}},{"$f":"SUBTOTAL(109,Pendapatan[% Perubahan dari Periode Sebelumnya])","v":{"v":0,"d":"0.00%"}},{"$f":"SUBTOTAL(109,Pendapatan[% Perubahan dari Anggaran])","v":{"v":0,"d":"0.00%"}}]

{"sheet":"Pengeluaran","index":3,"n_rows":25,"n_cols":9,"rows_kept":25,"merged":[[0,7,2,8]]}
[null,{"$f":"Judul_Buku_Kerja","v":"Laporan Laba Rugi"}]
[null,{"$f":"Nama_Perusahaan","v":"Nama Perusahaan"},"Dinyatakan dalam 000"]
[null,"Pengeluaran Operasional",{"$f":"IFERROR(PengeluaranOperasional[[#Totals],[Periode Saat Ini]],\"-\")","v":0}]
[null,"Tipe Pengeluaran","Deskripsi","Periode Sebelumnya","Anggaran","Periode Saat Ini","Periode Saat Ini dari % Penjualan","% Perubahan dari Periode Sebelumnya","% Perubahan dari Anggaran"]
[null,"Penjualan dan Pemasaran","Iklan",{"$nulls":3},{"$f":"IFERROR(IF(Pendapatan_Penjualan=0,\"-\",PengeluaranOperasional[[#This Row],[Periode Saat Ini]]/Pendapatan_Penjualan),\"-\")","v":"-"},{"$f":"IFERROR(IF(PengeluaranOperasional[[#This Row],[Periode Sebelumnya]]=PengeluaranOperasional[[#This Row],[Periode Saat Ini]],0,IF(PengeluaranOperasional[[#This Row],[Periode Saat Ini]]>PengeluaranOperasional[[#This Row],[Periode Sebelumnya]],ABS((PengeluaranOperasional[[#This Row],[Periode Saat Ini]]/PengeluaranOperasional[[#This Row],[Periode Sebelumnya]])-1),IF(AND(PengeluaranOperasional[[#This Row],[Periode Saat Ini]]<PengeluaranOperasional[[#This Row],[Periode Sebelumnya]],PengeluaranOperasional[[#This Row],[Periode Sebelumnya]]<0),-((PengeluaranOperasional[[#This Row],[Periode Saat Ini]]/PengeluaranOperasional[[#This Row],[Periode Sebelumnya]])-1),(PengeluaranOperasional[[#This Row],[Periode Saat Ini]]/PengeluaranOperasional[[#This Row],[Periode Sebelumnya]])-1))),\"-\")","v":{"v":0,"d":"0.00%"}},{"$f":"IFERROR(IF(PengeluaranOperasional[[#This Row],[Anggaran]]=PengeluaranOperasional[[#This Row],[Periode Saat Ini]],0,IF(PengeluaranOperasional[[#This Row],[Periode Saat Ini]]>PengeluaranOperasional[[#This Row],[Anggaran]],ABS((PengeluaranOperasional[[#This Row],[Periode Saat Ini]]/PengeluaranOperasional[[#This Row],[Anggaran]])-1),IF(AND(PengeluaranOperasional[[#This Row],[Periode Saat Ini]]<PengeluaranOperasional[[#This Row],[Anggaran]],PengeluaranOperasional[[#This Row],[Anggaran]]<0),-((PengeluaranOperasional[[#This Row],[Periode Saat Ini]]/PengeluaranOperasional[[#This Row],[Anggaran]])-1),(PengeluaranOperasional[[#This Row],[Periode Saat Ini]]/PengeluaranOperasional[[#This Row],[Anggaran]])-1))),\"-\")","v":{"v":0,"d":"0.00%"}}]
[null,"Penjualan dan Pemasaran","Pemasaran langsung",{"$nulls":3},{"$f":"IFERROR(IF(Pendapatan_Penjualan=0,\"-\",PengeluaranOperasional[[#This Row],[Periode Saat Ini]]/Pendapatan_Penjualan),\"-\")","v":"-"},{"$f":"IFERROR(IF(PengeluaranOperasional[[#This Row],[Periode Sebelumnya]]=PengeluaranOperasional[[#This Row],[Periode Saat Ini]],0,IF(PengeluaranOperasional[[#This Row],[Periode Saat Ini]]>PengeluaranOperasional[[#This Row],[Periode Sebelumnya]],ABS((PengeluaranOperasional[[#This Row],[Periode Saat Ini]]/PengeluaranOperasional[[#This Row],[Periode Sebelumnya]])-1),IF(AND(PengeluaranOperasional[[#This Row],[Periode Saat Ini]]<PengeluaranOperasional[[#This Row],[Periode Sebelumnya]],PengeluaranOperasional[[#This Row],[Periode Sebelumnya]]<0),-((PengeluaranOperasional[[#This Row],[Periode Saat Ini]]/PengeluaranOperasional[[#This Row],[Periode Sebelumnya]])-1),(PengeluaranOperasional[[#This Row],[Periode Saat Ini]]/PengeluaranOperasional[[#This Row],[Periode Sebelumnya]])-1))),\"-\")","v":{"v":0,"d":"0.00%"}},{"$f":"IFERROR(IF(PengeluaranOperasional[[#This Row],[Anggaran]]=PengeluaranOperasional[[#This Row],[Periode Saat Ini]],0,IF(PengeluaranOperasional[[#This Row],[Periode Saat Ini]]>PengeluaranOperasional[[#This Row],[Anggaran]],ABS((PengeluaranOperasional[[#This Row],[Periode Saat Ini]]/PengeluaranOperasional[[#This Row],[Anggaran]])-1),IF(AND(PengeluaranOperasional[[#This Row],[Periode Saat Ini]]<PengeluaranOperasional[[#This Row],[Anggaran]],PengeluaranOperasional[[#This Row],[Anggaran]]<0),-((PengeluaranOperasional[[#This Row],[Periode Saat Ini]]/PengeluaranOperasional[[#This Row],[Anggaran]])-1),(PengeluaranOperasional[[#This Row],[Periode Saat Ini]]/PengeluaranOperasional[[#This Row],[Anggaran]])-1))),\"-\")","v":{"v":0,"d":"0.00%"}}]
[null,"Penjualan dan Pemasaran","Pengeluaran lain (tentukan)",{"$nulls":3},{"$f":"IFERROR(IF(Pendapatan_Penjualan=0,\"-\",PengeluaranOperasional[[#This Row],[Periode Saat Ini]]/Pendapatan_Penjualan),\"-\")","v":"-"},{"$f":"IFERROR(IF(PengeluaranOperasional[[#This Row],[Periode Sebelumnya]]=PengeluaranOperasional[[#This Row],[Periode Saat Ini]],0,IF(PengeluaranOperasional[[#This Row],[Periode Saat Ini]]>PengeluaranOperasional[[#This Row],[Periode Sebelumnya]],ABS((PengeluaranOperasional[[#This Row],[Periode Saat Ini]]/PengeluaranOperasional[[#This Row],[Periode Sebelumnya]])-1),IF(AND(PengeluaranOperasional[[#This Row],[Periode Saat Ini]]<PengeluaranOperasional[[#This Row],[Periode Sebelumnya]],PengeluaranOperasional[[#This Row],[Periode Sebelumnya]]<0),-((PengeluaranOperasional[[#This Row],[Periode Saat Ini]]/PengeluaranOperasional[[#This Row],[Periode Sebelumnya]])-1),(PengeluaranOperasional[[#This Row],[Periode Saat Ini]]/PengeluaranOperasional[[#This Row],[Periode Sebelumnya]])-1))),\"-\")","v":{"v":0,"d":"0.00%"}},{"$f":"IFERROR(IF(PengeluaranOperasional[[#This Row],[Anggaran]]=PengeluaranOperasional[[#This Row],[Periode Saat Ini]],0,IF(PengeluaranOperasional[[#This Row],[Periode Saat Ini]]>PengeluaranOperasional[[#This Row],[Anggaran]],ABS((PengeluaranOperasional[[#This Row],[Periode Saat Ini]]/PengeluaranOperasional[[#This Row],[Anggaran]])-1),IF(AND(PengeluaranOperasional[[#This Row],[Periode Saat Ini]]<PengeluaranOperasional[[#This Row],[Anggaran]],PengeluaranOperasional[[#This Row],[Anggaran]]<0),-((PengeluaranOperasional[[#This Row],[Periode Saat Ini]]/PengeluaranOperasional[[#This Row],[Anggaran]])-1),(PengeluaranOperasional[[#This Row],[Periode Saat Ini]]/PengeluaranOperasional[[#This Row],[Anggaran]])-1))),\"-\")","v":{"v":0,"d":"0.00%"}}]
[null,"Penjualan dan Pemasaran","Pengeluaran lain (tentukan)",{"$nulls":3},{"$f":"IFERROR(IF(Pendapatan_Penjualan=0,\"-\",PengeluaranOperasional[[#This Row],[Periode Saat Ini]]/Pendapatan_Penjualan),\"-\")","v":"-"},{"$f":"IFERROR(IF(PengeluaranOperasional[[#This Row],[Periode Sebelumnya]]=PengeluaranOperasional[[#This Row],[Periode Saat Ini]],0,IF(PengeluaranOperasional[[#This Row],[Periode Saat Ini]]>PengeluaranOperasional[[#This Row],[Periode Sebelumnya]],ABS((PengeluaranOperasional[[#This Row],[Periode Saat Ini]]/PengeluaranOperasional[[#This Row],[Periode Sebelumnya]])-1),IF(AND(PengeluaranOperasional[[#This Row],[Periode Saat Ini]]<PengeluaranOperasional[[#This Row],[Periode Sebelumnya]],PengeluaranOperasional[[#This Row],[Periode Sebelumnya]]<0),-((PengeluaranOperasional[[#This Row],[Periode Saat Ini]]/PengeluaranOperasional[[#This Row],[Periode Sebelumnya]])-1),(PengeluaranOperasional[[#This Row],[Periode Saat Ini]]/PengeluaranOperasional[[#This Row],[Periode Sebelumnya]])-1))),\"-\")","v":{"v":0,"d":"0.00%"}},{"$f":"IFERROR(IF(PengeluaranOperasional[[#This Row],[Anggaran]]=PengeluaranOperasional[[#This Row],[Periode Saat Ini]],0,IF(PengeluaranOperasional[[#This Row],[Periode Saat Ini]]>PengeluaranOperasional[[#This Row],[Anggaran]],ABS((PengeluaranOperasional[[#This Row],[Periode Saat Ini]]/PengeluaranOperasional[[#This Row],[Anggaran]])-1),IF(AND(PengeluaranOperasional[[#This Row],[Periode Saat Ini]]<PengeluaranOperasional[[#This Row],[Anggaran]],PengeluaranOperasional[[#This Row],[Anggaran]]<0),-((PengeluaranOperasional[[#This Row],[Periode Saat Ini]]/PengeluaranOperasional[[#This Row],[Anggaran]])-1),(PengeluaranOperasional[[#This Row],[Periode Saat Ini]]/PengeluaranOperasional[[#This Row],[Anggaran]])-1))),\"-\")","v":{"v":0,"d":"0.00%"}}]
[null,"Riset dan Pengembangan","Lisensi teknologi",{"$nulls":3},{"$f":"IFERROR(IF(Pendapatan_Penjualan=0,\"-\",PengeluaranOperasional[[#This Row],[Periode Saat Ini]]/Pendapatan_Penjualan),\"-\")","v":"-"},{"$f":"IFERROR(IF(PengeluaranOperasional[[#This Row],[Periode Sebelumnya]]=PengeluaranOperasional[[#This Row],[Periode Saat Ini]],0,IF(PengeluaranOperasional[[#This Row],[Periode Saat Ini]]>PengeluaranOperasional[[#This Row],[Periode Sebelumnya]],ABS((PengeluaranOperasional[[#This Row],[Periode Saat Ini]]/PengeluaranOperasional[[#This Row],[Periode Sebelumnya]])-1),IF(AND(PengeluaranOperasional[[#This Row],[Periode Saat Ini]]<PengeluaranOperasional[[#This Row],[Periode Sebelumnya]],PengeluaranOperasional[[#This Row],[Periode Sebelumnya]]<0),-((PengeluaranOperasional[[#This Row],[Periode Saat Ini]]/PengeluaranOperasional[[#This Row],[Periode Sebelumnya]])-1),(PengeluaranOperasional[[#This Row],[Periode Saat Ini]]/PengeluaranOperasional[[#This Row],[Periode Sebelumnya]])-1))),\"-\")","v":{"v":0,"d":"0.00%"}},{"$f":"IFERROR(IF(PengeluaranOperasional[[#This Row],[Anggaran]]=PengeluaranOperasional[[#This Row],[Periode Saat Ini]],0,IF(PengeluaranOperasional[[#This Row],[Periode Saat Ini]]>PengeluaranOperasional[[#This Row],[Anggaran]],ABS((PengeluaranOperasional[[#This Row],[Periode Saat Ini]]/PengeluaranOperasional[[#This Row],[Anggaran]])-1),IF(AND(PengeluaranOperasional[[#This Row],[Periode Saat Ini]]<PengeluaranOperasional[[#This Row],[Anggaran]],PengeluaranOperasional[[#This Row],[Anggaran]]<0),-((PengeluaranOperasional[[#This Row],[Periode Saat Ini]]/PengeluaranOperasional[[#This Row],[Anggaran]])-1),(PengeluaranOperasional[[#This Row],[Periode Saat Ini]]/PengeluaranOperasional[[#This Row],[Anggaran]])-1))),\"-\")","v":{"v":0,"d":"0.00%"}}]
[null,"Riset dan Pengembangan","Paten ",{"$nulls":3},{"$f":"IFERROR(IF(Pendapatan_Penjualan=0,\"-\",PengeluaranOperasional[[#This Row],[Periode Saat Ini]]/Pendapatan_Penjualan),\"-\")","v":"-"},{"$f":"IFERROR(IF(PengeluaranOperasional[[#This Row],[Periode Sebelumnya]]=PengeluaranOperasional[[#This Row],[Periode Saat Ini]],0,IF(PengeluaranOperasional[[#This Row],[Periode Saat Ini]]>PengeluaranOperasional[[#This Row],[Periode Sebelumnya]],ABS((PengeluaranOperasional[[#This Row],[Periode Saat Ini]]/PengeluaranOperasional[[#This Row],[Periode Sebelumnya]])-1),IF(AND(PengeluaranOperasional[[#This Row],[Periode Saat Ini]]<PengeluaranOperasional[[#This Row],[Periode Sebelumnya]],PengeluaranOperasional[[#This Row],[Periode Sebelumnya]]<0),-((PengeluaranOperasional[[#This Row],[Periode Saat Ini]]/PengeluaranOperasional[[#This Row],[Periode Sebelumnya]])-1),(PengeluaranOperasional[[#This Row],[Periode Saat Ini]]/PengeluaranOperasional[[#This Row],[Periode Sebelumnya]])-1))),\"-\")","v":{"v":0,"d":"0.00%"}},{"$f":"IFERROR(IF(PengeluaranOperasional[[#This Row],[Anggaran]]=PengeluaranOperasional[[#This Row],[Periode Saat Ini]],0,IF(PengeluaranOperasional[[#This Row],[Periode Saat Ini]]>PengeluaranOperasional[[#This Row],[Anggaran]],ABS((PengeluaranOperasional[[#This Row],[Periode Saat Ini]]/PengeluaranOperasional[[#This Row],[Anggaran]])-1),IF(AND(PengeluaranOperasional[[#This Row],[Periode Saat Ini]]<PengeluaranOperasional[[#This Row],[Anggaran]],PengeluaranOperasional[[#This Row],[Anggaran]]<0),-((PengeluaranOperasional[[#This Row],[Periode Saat Ini]]/PengeluaranOperasional[[#This Row],[Anggaran]])-1),(PengeluaranOperasional[[#This Row],[Periode Saat Ini]]/PengeluaranOperasional[[#This Row],[Anggaran]])-1))),\"-\")","v":{"v":0,"d":"0.00%"}}]
[null,"Riset dan Pengembangan","Pengeluaran lain (tentukan)",{"$nulls":3},{"$f":"IFERROR(IF(Pendapatan_Penjualan=0,\"-\",PengeluaranOperasional[[#This Row],[Periode Saat Ini]]/Pendapatan_Penjualan),\"-\")","v":"-"},{"$f":"IFERROR(IF(PengeluaranOperasional[[#This Row],[Periode Sebelumnya]]=PengeluaranOperasional[[#This Row],[Periode Saat Ini]],0,IF(PengeluaranOperasional[[#This Row],[Periode Saat Ini]]>PengeluaranOperasional[[#This Row],[Periode Sebelumnya]],ABS((PengeluaranOperasional[[#This Row],[Periode Saat Ini]]/PengeluaranOperasional[[#This Row],[Periode Sebelumnya]])-1),IF(AND(PengeluaranOperasional[[#This Row],[Periode Saat Ini]]<PengeluaranOperasional[[#This Row],[Periode Sebelumnya]],PengeluaranOperasional[[#This Row],[Periode Sebelumnya]]<0),-((PengeluaranOperasional[[#This Row],[Periode Saat Ini]]/PengeluaranOperasional[[#This Row],[Periode Sebelumnya]])-1),(PengeluaranOperasional[[#This Row],[Periode Saat Ini]]/PengeluaranOperasional[[#This Row],[Periode Sebelumnya]])-1))),\"-\")","v":{"v":0,"d":"0.00%"}},{"$f":"IFERROR(IF(PengeluaranOperasional[[#This Row],[Anggaran]]=PengeluaranOperasional[[#This Row],[Periode Saat Ini]],0,IF(PengeluaranOperasional[[#This Row],[Periode Saat Ini]]>PengeluaranOperasional[[#This Row],[Anggaran]],ABS((PengeluaranOperasional[[#This Row],[Periode Saat Ini]]/PengeluaranOperasional[[#This Row],[Anggaran]])-1),IF(AND(PengeluaranOperasional[[#This Row],[Periode Saat Ini]]<PengeluaranOperasional[[#This Row],[Anggaran]],PengeluaranOperasional[[#This Row],[Anggaran]]<0),-((PengeluaranOperasional[[#This Row],[Periode Saat Ini]]/PengeluaranOperasional[[#This Row],[Anggaran]])-1),(PengeluaranOperasional[[#This Row],[Periode Saat Ini]]/PengeluaranOperasional[[#This Row],[Anggaran]])-1))),\"-\")","v":{"v":0,"d":"0.00%"}}]
[null,"Riset dan Pengembangan","Pengeluaran lain (tentukan)",{"$nulls":3},{"$f":"IFERROR(IF(Pendapatan_Penjualan=0,\"-\",PengeluaranOperasional[[#This Row],[Periode Saat Ini]]/Pendapatan_Penjualan),\"-\")","v":"-"},{"$f":"IFERROR(IF(PengeluaranOperasional[[#This Row],[Periode Sebelumnya]]=PengeluaranOperasional[[#This Row],[Periode Saat Ini]],0,IF(PengeluaranOperasional[[#This Row],[Periode Saat Ini]]>PengeluaranOperasional[[#This Row],[Periode Sebelumnya]],ABS((PengeluaranOperasional[[#This Row],[Periode Saat Ini]]/PengeluaranOperasional[[#This Row],[Periode Sebelumnya]])-1),IF(AND(PengeluaranOperasional[[#This Row],[Periode Saat Ini]]<PengeluaranOperasional[[#This Row],[Periode Sebelumnya]],PengeluaranOperasional[[#This Row],[Periode Sebelumnya]]<0),-((PengeluaranOperasional[[#This Row],[Periode Saat Ini]]/PengeluaranOperasional[[#This Row],[Periode Sebelumnya]])-1),(PengeluaranOperasional[[#This Row],[Periode Saat Ini]]/PengeluaranOperasional[[#This Row],[Periode Sebelumnya]])-1))),\"-\")","v":{"v":0,"d":"0.00%"}},{"$f":"IFERROR(IF(PengeluaranOperasional[[#This Row],[Anggaran]]=PengeluaranOperasional[[#This Row],[Periode Saat Ini]],0,IF(PengeluaranOperasional[[#This Row],[Periode Saat Ini]]>PengeluaranOperasional[[#This Row],[Anggaran]],ABS((PengeluaranOperasional[[#This Row],[Periode Saat Ini]]/PengeluaranOperasional[[#This Row],[Anggaran]])-1),IF(AND(PengeluaranOperasional[[#This Row],[Periode Saat Ini]]<PengeluaranOperasional[[#This Row],[Anggaran]],PengeluaranOperasional[[#This Row],[Anggaran]]<0),-((PengeluaranOperasional[[#This Row],[Periode Saat Ini]]/PengeluaranOperasional[[#This Row],[Anggaran]])-1),(PengeluaranOperasional[[#This Row],[Periode Saat Ini]]/PengeluaranOperasional[[#This Row],[Anggaran]])-1))),\"-\")","v":{"v":0,"d":"0.00%"}}]
[null,"Umum dan Administrasi","Upah dan gaji",{"$nulls":3},{"$f":"IFERROR(IF(Pendapatan_Penjualan=0,\"-\",PengeluaranOperasional[[#This Row],[Periode Saat Ini]]/Pendapatan_Penjualan),\"-\")","v":"-"},{"$f":"IFERROR(IF(PengeluaranOperasional[[#This Row],[Periode Sebelumnya]]=PengeluaranOperasional[[#This Row],[Periode Saat Ini]],0,IF(PengeluaranOperasional[[#This Row],[Periode Saat Ini]]>PengeluaranOperasional[[#This Row],[Periode Sebelumnya]],ABS((PengeluaranOperasional[[#This Row],[Periode Saat Ini]]/PengeluaranOperasional[[#This Row],[Periode Sebelumnya]])-1),IF(AND(PengeluaranOperasional[[#This Row],[Periode Saat Ini]]<PengeluaranOperasional[[#This Row],[Periode Sebelumnya]],PengeluaranOperasional[[#This Row],[Periode Sebelumnya]]<0),-((PengeluaranOperasional[[#This Row],[Periode Saat Ini]]/PengeluaranOperasional[[#This Row],[Periode Sebelumnya]])-1),(PengeluaranOperasional[[#This Row],[Periode Saat Ini]]/PengeluaranOperasional[[#This Row],[Periode Sebelumnya]])-1))),\"-\")","v":{"v":0,"d":"0.00%"}},{"$f":"IFERROR(IF(PengeluaranOperasional[[#This Row],[Anggaran]]=PengeluaranOperasional[[#This Row],[Periode Saat Ini]],0,IF(PengeluaranOperasional[[#This Row],[Periode Saat Ini]]>PengeluaranOperasional[[#This Row],[Anggaran]],ABS((PengeluaranOperasional[[#This Row],[Periode Saat Ini]]/PengeluaranOperasional[[#This Row],[Anggaran]])-1),IF(AND(PengeluaranOperasional[[#This Row],[Periode Saat Ini]]<PengeluaranOperasional[[#This Row],[Anggaran]],PengeluaranOperasional[[#This Row],[Anggaran]]<0),-((PengeluaranOperasional[[#This Row],[Periode Saat Ini]]/PengeluaranOperasional[[#This Row],[Anggaran]])-1),(PengeluaranOperasional[[#This Row],[Periode Saat Ini]]/PengeluaranOperasional[[#This Row],[Anggaran]])-1))),\"-\")","v":{"v":0,"d":"0.00%"}}]
[null,"Umum dan Administrasi","Layanan luar",{"$nulls":3},{"$f":"IFERROR(IF(Pendapatan_Penjualan=0,\"-\",PengeluaranOperasional[[#This Row],[Periode Saat Ini]]/Pendapatan_Penjualan),\"-\")","v":"-"},{"$f":"IFERROR(IF(PengeluaranOperasional[[#This Row],[Periode Sebelumnya]]=PengeluaranOperasional[[#This Row],[Periode Saat Ini]],0,IF(PengeluaranOperasional[[#This Row],[Periode Saat Ini]]>PengeluaranOperasional[[#This Row],[Periode Sebelumnya]],ABS((PengeluaranOperasional[[#This Row],[Periode Saat Ini]]/PengeluaranOperasional[[#This Row],[Periode Sebelumnya]])-1),IF(AND(PengeluaranOperasional[[#This Row],[Periode Saat Ini]]<PengeluaranOperasional[[#This Row],[Periode Sebelumnya]],PengeluaranOperasional[[#This Row],[Periode Sebelumnya]]<0),-((PengeluaranOperasional[[#This Row],[Periode Saat Ini]]/PengeluaranOperasional[[#This Row],[Periode Sebelumnya]])-1),(PengeluaranOperasional[[#This Row],[Periode Saat Ini]]/PengeluaranOperasional[[#This Row],[Periode Sebelumnya]])-1))),\"-\")","v":{"v":0,"d":"0.00%"}},{"$f":"IFERROR(IF(PengeluaranOperasional[[#This Row],[Anggaran]]=PengeluaranOperasional[[#This Row],[Periode Saat Ini]],0,IF(PengeluaranOperasional[[#This Row],[Periode Saat Ini]]>PengeluaranOperasional[[#This Row],[Anggaran]],ABS((PengeluaranOperasional[[#This Row],[Periode Saat Ini]]/PengeluaranOperasional[[#This Row],[Anggaran]])-1),IF(AND(PengeluaranOperasional[[#This Row],[Periode Saat Ini]]<PengeluaranOperasional[[#This Row],[Anggaran]],PengeluaranOperasional[[#This Row],[Anggaran]]<0),-((PengeluaranOperasional[[#This Row],[Periode Saat Ini]]/PengeluaranOperasional[[#This Row],[Anggaran]])-1),(PengeluaranOperasional[[#This Row],[Periode Saat Ini]]/PengeluaranOperasional[[#This Row],[Anggaran]])-1))),\"-\")","v":{"v":0,"d":"0.00%"}}]
[null,"Umum dan Administrasi","Persediaan",{"$nulls":3},{"$f":"IFERROR(IF(Pendapatan_Penjualan=0,\"-\",PengeluaranOperasional[[#This Row],[Periode Saat Ini]]/Pendapatan_Penjualan),\"-\")","v":"-"},{"$f":"IFERROR(IF(PengeluaranOperasional[[#This Row],[Periode Sebelumnya]]=PengeluaranOperasional[[#This Row],[Periode Saat Ini]],0,IF(PengeluaranOperasional[[#This Row],[Periode Saat Ini]]>PengeluaranOperasional[[#This Row],[Periode Sebelumnya]],ABS((PengeluaranOperasional[[#This Row],[Periode Saat Ini]]/PengeluaranOperasional[[#This Row],[Periode Sebelumnya]])-1),IF(AND(PengeluaranOperasional[[#This Row],[Periode Saat Ini]]<PengeluaranOperasional[[#This Row],[Periode Sebelumnya]],PengeluaranOperasional[[#This Row],[Periode Sebelumnya]]<0),-((PengeluaranOperasional[[#This Row],[Periode Saat Ini]]/PengeluaranOperasional[[#This Row],[Periode Sebelumnya]])-1),(PengeluaranOperasional[[#This Row],[Periode Saat Ini]]/PengeluaranOperasional[[#This Row],[Periode Sebelumnya]])-1))),\"-\")","v":{"v":0,"d":"0.00%"}},{"$f":"IFERROR(IF(PengeluaranOperasional[[#This Row],[Anggaran]]=PengeluaranOperasional[[#This Row],[Periode Saat Ini]],0,IF(PengeluaranOperasional[[#This Row],[Periode Saat Ini]]>PengeluaranOperasional[[#This Row],[Anggaran]],ABS((PengeluaranOperasional[[#This Row],[Periode Saat Ini]]/PengeluaranOperasional[[#This Row],[Anggaran]])-1),IF(AND(PengeluaranOperasional[[#This Row],[Periode Saat Ini]]<PengeluaranOperasional[[#This Row],[Anggaran]],PengeluaranOperasional[[#This Row],[Anggaran]]<0),-((PengeluaranOperasional[[#This Row],[Periode Saat Ini]]/PengeluaranOperasional[[#This Row],[Anggaran]])-1),(PengeluaranOperasional[[#This Row],[Periode Saat Ini]]/PengeluaranOperasional[[#This Row],[Anggaran]])-1))),\"-\")","v":{"v":0,"d":"0.00%"}}]
[null,"Umum dan Administrasi","Konsumsi dan hiburan",{"$nulls":3},{"$f":"IFERROR(IF(Pendapatan_Penjualan=0,\"-\",PengeluaranOperasional[[#This Row],[Periode Saat Ini]]/Pendapatan_Penjualan),\"-\")","v":"-"},{"$f":"IFERROR(IF(PengeluaranOperasional[[#This Row],[Periode Sebelumnya]]=PengeluaranOperasional[[#This Row],[Periode Saat Ini]],0,IF(PengeluaranOperasional[[#This Row],[Periode Saat Ini]]>PengeluaranOperasional[[#This Row],[Periode Sebelumnya]],ABS((PengeluaranOperasional[[#This Row],[Periode Saat Ini]]/PengeluaranOperasional[[#This Row],[Periode Sebelumnya]])-1),IF(AND(PengeluaranOperasional[[#This Row],[Periode Saat Ini]]<PengeluaranOperasional[[#This Row],[Periode Sebelumnya]],PengeluaranOperasional[[#This Row],[Periode Sebelumnya]]<0),-((PengeluaranOperasional[[#This Row],[Periode Saat Ini]]/PengeluaranOperasional[[#This Row],[Periode Sebelumnya]])-1),(PengeluaranOperasional[[#This Row],[Periode Saat Ini]]/PengeluaranOperasional[[#This Row],[Periode Sebelumnya]])-1))),\"-\")","v":{"v":0,"d":"0.00%"}},{"$f":"IFERROR(IF(PengeluaranOperasional[[#This Row],[Anggaran]]=PengeluaranOperasional[[#This Row],[Periode Saat Ini]],0,IF(PengeluaranOperasional[[#This Row],[Periode Saat Ini]]>PengeluaranOperasional[[#This Row],[Anggaran]],ABS((PengeluaranOperasional[[#This Row],[Periode Saat Ini]]/PengeluaranOperasional[[#This Row],[Anggaran]])-1),IF(AND(PengeluaranOperasional[[#This Row],[Periode Saat Ini]]<PengeluaranOperasional[[#This Row],[Anggaran]],PengeluaranOperasional[[#This Row],[Anggaran]]<0),-((PengeluaranOperasional[[#This Row],[Periode Saat Ini]]/PengeluaranOperasional[[#This Row],[Anggaran]])-1),(PengeluaranOperasional[[#This Row],[Periode Saat Ini]]/PengeluaranOperasional[[#This Row],[Anggaran]])-1))),\"-\")","v":{"v":0,"d":"0.00%"}}]
[null,"Umum dan Administrasi","Sewa",{"$nulls":3},{"$f":"IFERROR(IF(Pendapatan_Penjualan=0,\"-\",PengeluaranOperasional[[#This Row],[Periode Saat Ini]]/Pendapatan_Penjualan),\"-\")","v":"-"},{"$f":"IFERROR(IF(PengeluaranOperasional[[#This Row],[Periode Sebelumnya]]=PengeluaranOperasional[[#This Row],[Periode Saat Ini]],0,IF(PengeluaranOperasional[[#This Row],[Periode Saat Ini]]>PengeluaranOperasional[[#This Row],[Periode Sebelumnya]],ABS((PengeluaranOperasional[[#This Row],[Periode Saat Ini]]/PengeluaranOperasional[[#This Row],[Periode Sebelumnya]])-1),IF(AND(PengeluaranOperasional[[#This Row],[Periode Saat Ini]]<PengeluaranOperasional[[#This Row],[Periode Sebelumnya]],PengeluaranOperasional[[#This Row],[Periode Sebelumnya]]<0),-((PengeluaranOperasional[[#This Row],[Periode Saat Ini]]/PengeluaranOperasional[[#This Row],[Periode Sebelumnya]])-1),(PengeluaranOperasional[[#This Row],[Periode Saat Ini]]/PengeluaranOperasional[[#This Row],[Periode Sebelumnya]])-1))),\"-\")","v":{"v":0,"d":"0.00%"}},{"$f":"IFERROR(IF(PengeluaranOperasional[[#This Row],[Anggaran]]=PengeluaranOperasional[[#This Row],[Periode Saat Ini]],0,IF(PengeluaranOperasional[[#This Row],[Periode Saat Ini]]>PengeluaranOperasional[[#This Row],[Anggaran]],ABS((PengeluaranOperasional[[#This Row],[Periode Saat Ini]]/PengeluaranOperasional[[#This Row],[Anggaran]])-1),IF(AND(PengeluaranOperasional[[#This Row],[Periode Saat Ini]]<PengeluaranOperasional[[#This Row],[Anggaran]],PengeluaranOperasional[[#This Row],[Anggaran]]<0),-((PengeluaranOperasional[[#This Row],[Periode Saat Ini]]/PengeluaranOperasional[[#This Row],[Anggaran]])-1),(PengeluaranOperasional[[#This Row],[Periode Saat Ini]]/PengeluaranOperasional[[#This Row],[Anggaran]])-1))),\"-\")","v":{"v":0,"d":"0.00%"}}]
[null,"Umum dan Administrasi","Telepon",{"$nulls":3},{"$f":"IFERROR(IF(Pendapatan_Penjualan=0,\"-\",PengeluaranOperasional[[#This Row],[Periode Saat Ini]]/Pendapatan_Penjualan),\"-\")","v":"-"},{"$f":"IFERROR(IF(PengeluaranOperasional[[#This Row],[Periode Sebelumnya]]=PengeluaranOperasional[[#This Row],[Periode Saat Ini]],0,IF(PengeluaranOperasional[[#This Row],[Periode Saat Ini]]>PengeluaranOperasional[[#This Row],[Periode Sebelumnya]],ABS((PengeluaranOperasional[[#This Row],[Periode Saat Ini]]/PengeluaranOperasional[[#This Row],[Periode Sebelumnya]])-1),IF(AND(PengeluaranOperasional[[#This Row],[Periode Saat Ini]]<PengeluaranOperasional[[#This Row],[Periode Sebelumnya]],PengeluaranOperasional[[#This Row],[Periode Sebelumnya]]<0),-((PengeluaranOperasional[[#This Row],[Periode Saat Ini]]/PengeluaranOperasional[[#This Row],[Periode Sebelumnya]])-1),(PengeluaranOperasional[[#This Row],[Periode Saat Ini]]/PengeluaranOperasional[[#This Row],[Periode Sebelumnya]])-1))),\"-\")","v":{"v":0,"d":"0.00%"}},{"$f":"IFERROR(IF(PengeluaranOperasional[[#This Row],[Anggaran]]=PengeluaranOperasional[[#This Row],[Periode Saat Ini]],0,IF(PengeluaranOperasional[[#This Row],[Periode Saat Ini]]>PengeluaranOperasional[[#This Row],[Anggaran]],ABS((PengeluaranOperasional[[#This Row],[Periode Saat Ini]]/PengeluaranOperasional[[#This Row],[Anggaran]])-1),IF(AND(PengeluaranOperasional[[#This Row],[Periode Saat Ini]]<PengeluaranOperasional[[#This Row],[Anggaran]],PengeluaranOperasional[[#This Row],[Anggaran]]<0),-((PengeluaranOperasional[[#This Row],[Periode Saat Ini]]/PengeluaranOperasional[[#This Row],[Anggaran]])-1),(PengeluaranOperasional[[#This Row],[Periode Saat Ini]]/PengeluaranOperasional[[#This Row],[Anggaran]])-1))),\"-\")","v":{"v":0,"d":"0.00%"}}]
[null,"Umum dan Administrasi","Kebutuhan Umum",{"$nulls":3},{"$f":"IFERROR(IF(Pendapatan_Penjualan=0,\"-\",PengeluaranOperasional[[#This Row],[Periode Saat Ini]]/Pendapatan_Penjualan),\"-\")","v":"-"},{"$f":"IFERROR(IF(PengeluaranOperasional[[#This Row],[Periode Sebelumnya]]=PengeluaranOperasional[[#This Row],[Periode Saat Ini]],0,IF(PengeluaranOperasional[[#This Row],[Periode Saat Ini]]>PengeluaranOperasional[[#This Row],[Periode Sebelumnya]],ABS((PengeluaranOperasional[[#This Row],[Periode Saat Ini]]/PengeluaranOperasional[[#This Row],[Periode Sebelumnya]])-1),IF(AND(PengeluaranOperasional[[#This Row],[Periode Saat Ini]]<PengeluaranOperasional[[#This Row],[Periode Sebelumnya]],PengeluaranOperasional[[#This Row],[Periode Sebelumnya]]<0),-((PengeluaranOperasional[[#This Row],[Periode Saat Ini]]/PengeluaranOperasional[[#This Row],[Periode Sebelumnya]])-1),(PengeluaranOperasional[[#This Row],[Periode Saat Ini]]/PengeluaranOperasional[[#This Row],[Periode Sebelumnya]])-1))),\"-\")","v":{"v":0,"d":"0.00%"}},{"$f":"IFERROR(IF(PengeluaranOperasional[[#This Row],[Anggaran]]=PengeluaranOperasional[[#This Row],[Periode Saat Ini]],0,IF(PengeluaranOperasional[[#This Row],[Periode Saat Ini]]>PengeluaranOperasional[[#This Row],[Anggaran]],ABS((PengeluaranOperasional[[#This Row],[Periode Saat Ini]]/PengeluaranOperasional[[#This Row],[Anggaran]])-1),IF(AND(PengeluaranOperasional[[#This Row],[Periode Saat Ini]]<PengeluaranOperasional[[#This Row],[Anggaran]],PengeluaranOperasional[[#This Row],[Anggaran]]<0),-((PengeluaranOperasional[[#This Row],[Periode Saat Ini]]/PengeluaranOperasional[[#This Row],[Anggaran]])-1),(PengeluaranOperasional[[#This Row],[Periode Saat Ini]]/PengeluaranOperasional[[#This Row],[Anggaran]])-1))),\"-\")","v":{"v":0,"d":"0.00%"}}]
[null,"Umum dan Administrasi","Depresiasi",{"$nulls":3},{"$f":"IFERROR(IF(Pendapatan_Penjualan=0,\"-\",PengeluaranOperasional[[#This Row],[Periode Saat Ini]]/Pendapatan_Penjualan),\"-\")","v":"-"},{"$f":"IFERROR(IF(PengeluaranOperasional[[#This Row],[Periode Sebelumnya]]=PengeluaranOperasional[[#This Row],[Periode Saat Ini]],0,IF(PengeluaranOperasional[[#This Row],[Periode Saat Ini]]>PengeluaranOperasional[[#This Row],[Periode Sebelumnya]],ABS((PengeluaranOperasional[[#This Row],[Periode Saat Ini]]/PengeluaranOperasional[[#This Row],[Periode Sebelumnya]])-1),IF(AND(PengeluaranOperasional[[#This Row],[Periode Saat Ini]]<PengeluaranOperasional[[#This Row],[Periode Sebelumnya]],PengeluaranOperasional[[#This Row],[Periode Sebelumnya]]<0),-((PengeluaranOperasional[[#This Row],[Periode Saat Ini]]/PengeluaranOperasional[[#This Row],[Periode Sebelumnya]])-1),(PengeluaranOperasional[[#This Row],[Periode Saat Ini]]/PengeluaranOperasional[[#This Row],[Periode Sebelumnya]])-1))),\"-\")","v":{"v":0,"d":"0.00%"}},{"$f":"IFERROR(IF(PengeluaranOperasional[[#This Row],[Anggaran]]=PengeluaranOperasional[[#This Row],[Periode Saat Ini]],0,IF(PengeluaranOperasional[[#This Row],[Periode Saat Ini]]>PengeluaranOperasional[[#This Row],[Anggaran]],ABS((PengeluaranOperasional[[#This Row],[Periode Saat Ini]]/PengeluaranOperasional[[#This Row],[Anggaran]])-1),IF(AND(PengeluaranOperasional[[#This Row],[Periode Saat Ini]]<PengeluaranOperasional[[#This Row],[Anggaran]],PengeluaranOperasional[[#This Row],[Anggaran]]<0),-((PengeluaranOperasional[[#This Row],[Periode Saat Ini]]/PengeluaranOperasional[[#This Row],[Anggaran]])-1),(PengeluaranOperasional[[#This Row],[Periode Saat Ini]]/PengeluaranOperasional[[#This Row],[Anggaran]])-1))),\"-\")","v":{"v":0,"d":"0.00%"}}]
[null,"Umum dan Administrasi","Asuransi",{"$nulls":3},{"$f":"IFERROR(IF(Pendapatan_Penjualan=0,\"-\",PengeluaranOperasional[[#This Row],[Periode Saat Ini]]/Pendapatan_Penjualan),\"-\")","v":"-"},{"$f":"IFERROR(IF(PengeluaranOperasional[[#This Row],[Periode Sebelumnya]]=PengeluaranOperasional[[#This Row],[Periode Saat Ini]],0,IF(PengeluaranOperasional[[#This Row],[Periode Saat Ini]]>PengeluaranOperasional[[#This Row],[Periode Sebelumnya]],ABS((PengeluaranOperasional[[#This Row],[Periode Saat Ini]]/PengeluaranOperasional[[#This Row],[Periode Sebelumnya]])-1),IF(AND(PengeluaranOperasional[[#This Row],[Periode Saat Ini]]<PengeluaranOperasional[[#This Row],[Periode Sebelumnya]],PengeluaranOperasional[[#This Row],[Periode Sebelumnya]]<0),-((PengeluaranOperasional[[#This Row],[Periode Saat Ini]]/PengeluaranOperasional[[#This Row],[Periode Sebelumnya]])-1),(PengeluaranOperasional[[#This Row],[Periode Saat Ini]]/PengeluaranOperasional[[#This Row],[Periode Sebelumnya]])-1))),\"-\")","v":{"v":0,"d":"0.00%"}},{"$f":"IFERROR(IF(PengeluaranOperasional[[#This Row],[Anggaran]]=PengeluaranOperasional[[#This Row],[Periode Saat Ini]],0,IF(PengeluaranOperasional[[#This Row],[Periode Saat Ini]]>PengeluaranOperasional[[#This Row],[Anggaran]],ABS((PengeluaranOperasional[[#This Row],[Periode Saat Ini]]/PengeluaranOperasional[[#This Row],[Anggaran]])-1),IF(AND(PengeluaranOperasional[[#This Row],[Periode Saat Ini]]<PengeluaranOperasional[[#This Row],[Anggaran]],PengeluaranOperasional[[#This Row],[Anggaran]]<0),-((PengeluaranOperasional[[#This Row],[Periode Saat Ini]]/PengeluaranOperasional[[#This Row],[Anggaran]])-1),(PengeluaranOperasional[[#This Row],[Periode Saat Ini]]/PengeluaranOperasional[[#This Row],[Anggaran]])-1))),\"-\")","v":{"v":0,"d":"0.00%"}}]
[null,"Umum dan Administrasi","Perbaikan dan pemeliharaan",{"$nulls":3},{"$f":"IFERROR(IF(Pendapatan_Penjualan=0,\"-\",PengeluaranOperasional[[#This Row],[Periode Saat Ini]]/Pendapatan_Penjualan),\"-\")","v":"-"},{"$f":"IFERROR(IF(PengeluaranOperasional[[#This Row],[Periode Sebelumnya]]=PengeluaranOperasional[[#This Row],[Periode Saat Ini]],0,IF(PengeluaranOperasional[[#This Row],[Periode Saat Ini]]>PengeluaranOperasional[[#This Row],[Periode Sebelumnya]],ABS((PengeluaranOperasional[[#This Row],[Periode Saat Ini]]/PengeluaranOperasional[[#This Row],[Periode Sebelumnya]])-1),IF(AND(PengeluaranOperasional[[#This Row],[Periode Saat Ini]]<PengeluaranOperasional[[#This Row],[Periode Sebelumnya]],PengeluaranOperasional[[#This Row],[Periode Sebelumnya]]<0),-((PengeluaranOperasional[[#This Row],[Periode Saat Ini]]/PengeluaranOperasional[[#This Row],[Periode Sebelumnya]])-1),(PengeluaranOperasional[[#This Row],[Periode Saat Ini]]/PengeluaranOperasional[[#This Row],[Periode Sebelumnya]])-1))),\"-\")","v":{"v":0,"d":"0.00%"}},{"$f":"IFERROR(IF(PengeluaranOperasional[[#This Row],[Anggaran]]=PengeluaranOperasional[[#This Row],[Periode Saat Ini]],0,IF(PengeluaranOperasional[[#This Row],[Periode Saat Ini]]>PengeluaranOperasional[[#This Row],[Anggaran]],ABS((PengeluaranOperasional[[#This Row],[Periode Saat Ini]]/PengeluaranOperasional[[#This Row],[Anggaran]])-1),IF(AND(PengeluaranOperasional[[#This Row],[Periode Saat Ini]]<PengeluaranOperasional[[#This Row],[Anggaran]],PengeluaranOperasional[[#This Row],[Anggaran]]<0),-((PengeluaranOperasional[[#This Row],[Periode Saat Ini]]/PengeluaranOperasional[[#This Row],[Anggaran]])-1),(PengeluaranOperasional[[#This Row],[Periode Saat Ini]]/PengeluaranOperasional[[#This Row],[Anggaran]])-1))),\"-\")","v":{"v":0,"d":"0.00%"}}]
[null,"Umum dan Administrasi","Pengeluaran lain (tentukan)",{"$nulls":3},{"$f":"IFERROR(IF(Pendapatan_Penjualan=0,\"-\",PengeluaranOperasional[[#This Row],[Periode Saat Ini]]/Pendapatan_Penjualan),\"-\")","v":"-"},{"$f":"IFERROR(IF(PengeluaranOperasional[[#This Row],[Periode Sebelumnya]]=PengeluaranOperasional[[#This Row],[Periode Saat Ini]],0,IF(PengeluaranOperasional[[#This Row],[Periode Saat Ini]]>PengeluaranOperasional[[#This Row],[Periode Sebelumnya]],ABS((PengeluaranOperasional[[#This Row],[Periode Saat Ini]]/PengeluaranOperasional[[#This Row],[Periode Sebelumnya]])-1),IF(AND(PengeluaranOperasional[[#This Row],[Periode Saat Ini]]<PengeluaranOperasional[[#This Row],[Periode Sebelumnya]],PengeluaranOperasional[[#This Row],[Periode Sebelumnya]]<0),-((PengeluaranOperasional[[#This Row],[Periode Saat Ini]]/PengeluaranOperasional[[#This Row],[Periode Sebelumnya]])-1),(PengeluaranOperasional[[#This Row],[Periode Saat Ini]]/PengeluaranOperasional[[#This Row],[Periode Sebelumnya]])-1))),\"-\")","v":{"v":0,"d":"0.00%"}},{"$f":"IFERROR(IF(PengeluaranOperasional[[#This Row],[Anggaran]]=PengeluaranOperasional[[#This Row],[Periode Saat Ini]],0,IF(PengeluaranOperasional[[#This Row],[Periode Saat Ini]]>PengeluaranOperasional[[#This Row],[Anggaran]],ABS((PengeluaranOperasional[[#This Row],[Periode Saat Ini]]/PengeluaranOperasional[[#This Row],[Anggaran]])-1),IF(AND(PengeluaranOperasional[[#This Row],[Periode Saat Ini]]<PengeluaranOperasional[[#This Row],[Anggaran]],PengeluaranOperasional[[#This Row],[Anggaran]]<0),-((PengeluaranOperasional[[#This Row],[Periode Saat Ini]]/PengeluaranOperasional[[#This Row],[Anggaran]])-1),(PengeluaranOperasional[[#This Row],[Periode Saat Ini]]/PengeluaranOperasional[[#This Row],[Anggaran]])-1))),\"-\")","v":{"v":0,"d":"0.00%"}}]
[null,"Umum dan Administrasi","Pengeluaran lain (tentukan)",{"$nulls":3},{"$f":"IFERROR(IF(Pendapatan_Penjualan=0,\"-\",PengeluaranOperasional[[#This Row],[Periode Saat Ini]]/Pendapatan_Penjualan),\"-\")","v":"-"},{"$f":"IFERROR(IF(PengeluaranOperasional[[#This Row],[Periode Sebelumnya]]=PengeluaranOperasional[[#This Row],[Periode Saat Ini]],0,IF(PengeluaranOperasional[[#This Row],[Periode Saat Ini]]>PengeluaranOperasional[[#This Row],[Periode Sebelumnya]],ABS((PengeluaranOperasional[[#This Row],[Periode Saat Ini]]/PengeluaranOperasional[[#This Row],[Periode Sebelumnya]])-1),IF(AND(PengeluaranOperasional[[#This Row],[Periode Saat Ini]]<PengeluaranOperasional[[#This Row],[Periode Sebelumnya]],PengeluaranOperasional[[#This Row],[Periode Sebelumnya]]<0),-((PengeluaranOperasional[[#This Row],[Periode Saat Ini]]/PengeluaranOperasional[[#This Row],[Periode Sebelumnya]])-1),(PengeluaranOperasional[[#This Row],[Periode Saat Ini]]/PengeluaranOperasional[[#This Row],[Periode Sebelumnya]])-1))),\"-\")","v":{"v":0,"d":"0.00%"}},{"$f":"IFERROR(IF(PengeluaranOperasional[[#This Row],[Anggaran]]=PengeluaranOperasional[[#This Row],[Periode Saat Ini]],0,IF(PengeluaranOperasional[[#This Row],[Periode Saat Ini]]>PengeluaranOperasional[[#This Row],[Anggaran]],ABS((PengeluaranOperasional[[#This Row],[Periode Saat Ini]]/PengeluaranOperasional[[#This Row],[Anggaran]])-1),IF(AND(PengeluaranOperasional[[#This Row],[Periode Saat Ini]]<PengeluaranOperasional[[#This Row],[Anggaran]],PengeluaranOperasional[[#This Row],[Anggaran]]<0),-((PengeluaranOperasional[[#This Row],[Periode Saat Ini]]/PengeluaranOperasional[[#This Row],[Anggaran]])-1),(PengeluaranOperasional[[#This Row],[Periode Saat Ini]]/PengeluaranOperasional[[#This Row],[Anggaran]])-1))),\"-\")","v":{"v":0,"d":"0.00%"}}]
[null,"Total Pengeluaran Operasional",null,{"$f":"SUBTOTAL(109,PengeluaranOperasional[Periode Sebelumnya])","v":0},{"$f":"SUBTOTAL(109,PengeluaranOperasional[Anggaran])","v":0},{"$f":"SUBTOTAL(109,PengeluaranOperasional[Periode Saat Ini])","v":0},{"$f":"SUBTOTAL(109,PengeluaranOperasional[Periode Saat Ini dari % Penjualan])","v":{"v":0,"d":"0.00%"}},{"$f":"SUBTOTAL(109,PengeluaranOperasional[% Perubahan dari Periode Sebelumnya])","v":{"v":0,"d":"0.00%"}},{"$f":"SUBTOTAL(109,PengeluaranOperasional[% Perubahan dari Anggaran])","v":{"v":0,"d":"0.00%"}}]

{"sheet":"Pajak","index":4,"n_rows":10,"n_cols":9,"rows_kept":10,"merged":[[0,7,2,8]]}
[null,{"$f":"Judul_Buku_Kerja","v":"Laporan Laba Rugi"}]
[null,{"$f":"Nama_Perusahaan","v":"Nama Perusahaan"},"Dinyatakan dalam 000"]
[null,"Pajak",{"$f":"IFERROR(Pajak[[#Totals],[Periode Saat Ini]],\"-\")","v":0}]
[null,"Jenis","Deskripsi","Periode Sebelumnya","Anggaran","Periode Saat Ini","Periode Saat Ini dari % Penjualan","% Perubahan dari Periode Sebelumnya","% Perubahan dari Anggaran"]
[null,"Pajak","Pajak penghasilan",{"$nulls":3},{"$f":"IFERROR(IF(Pendapatan_Penjualan=0,\"-\",Pajak[[#This Row],[Periode Saat Ini]]/Pendapatan_Penjualan),\"-\")","v":"-"},{"$f":"IFERROR(IF(Pajak[[#This Row],[Periode Sebelumnya]]=Pajak[[#This Row],[Periode Saat Ini]],0,IF(Pajak[[#This Row],[Periode Saat Ini]]>Pajak[[#This Row],[Periode Sebelumnya]],ABS((Pajak[[#This Row],[Periode Saat Ini]]/Pajak[[#This Row],[Periode Sebelumnya]])-1),IF(AND(Pajak[[#This Row],[Periode Saat Ini]]<Pajak[[#This Row],[Periode Sebelumnya]],Pajak[[#This Row],[Periode Sebelumnya]]<0),-((Pajak[[#This Row],[Periode Saat Ini]]/Pajak[[#This Row],[Periode Sebelumnya]])-1),(Pajak[[#This Row],[Periode Saat Ini]]/Pajak[[#This Row],[Periode Sebelumnya]])-1))),\"-\")","v":{"v":0,"d":"0.00%"}},{"$f":"IFERROR(IF(Pajak[[#This Row],[Anggaran]]=Pajak[[#This Row],[Periode Saat Ini]],0,IF(Pajak[[#This Row],[Periode Saat Ini]]>Pajak[[#This Row],[Anggaran]],ABS((Pajak[[#This Row],[Periode Saat Ini]]/Pajak[[#This Row],[Anggaran]])-1),IF(AND(Pajak[[#This Row],[Periode Saat Ini]]<Pajak[[#This Row],[Anggaran]],Pajak[[#This Row],[Anggaran]]<0),-((Pajak[[#This Row],[Periode Saat Ini]]/Pajak[[#This Row],[Anggaran]])-1),(Pajak[[#This Row],[Periode Saat Ini]]/Pajak[[#This Row],[Anggaran]])-1))),\"-\")","v":{"v":0,"d":"0.00%"}}]
[null,"Pajak","Pajak gaji",{"$nulls":3},{"$f":"IFERROR(IF(Pendapatan_Penjualan=0,\"-\",Pajak[[#This Row],[Periode Saat Ini]]/Pendapatan_Penjualan),\"-\")","v":"-"},{"$f":"IFERROR(IF(Pajak[[#This Row],[Periode Sebelumnya]]=Pajak[[#This Row],[Periode Saat Ini]],0,IF(Pajak[[#This Row],[Periode Saat Ini]]>Pajak[[#This Row],[Periode Sebelumnya]],ABS((Pajak[[#This Row],[Periode Saat Ini]]/Pajak[[#This Row],[Periode Sebelumnya]])-1),IF(AND(Pajak[[#This Row],[Periode Saat Ini]]<Pajak[[#This Row],[Periode Sebelumnya]],Pajak[[#This Row],[Periode Sebelumnya]]<0),-((Pajak[[#This Row],[Periode Saat Ini]]/Pajak[[#This Row],[Periode Sebelumnya]])-1),(Pajak[[#This Row],[Periode Saat Ini]]/Pajak[[#This Row],[Periode Sebelumnya]])-1))),\"-\")","v":{"v":0,"d":"0.00%"}},{"$f":"IFERROR(IF(Pajak[[#This Row],[Anggaran]]=Pajak[[#This Row],[Periode Saat Ini]],0,IF(Pajak[[#This Row],[Periode Saat Ini]]>Pajak[[#This Row],[Anggaran]],ABS((Pajak[[#This Row],[Periode Saat Ini]]/Pajak[[#This Row],[Anggaran]])-1),IF(AND(Pajak[[#This Row],[Periode Saat Ini]]<Pajak[[#This Row],[Anggaran]],Pajak[[#This Row],[Anggaran]]<0),-((Pajak[[#This Row],[Periode Saat Ini]]/Pajak[[#This Row],[Anggaran]])-1),(Pajak[[#This Row],[Periode Saat Ini]]/Pajak[[#This Row],[Anggaran]])-1))),\"-\")","v":{"v":0,"d":"0.00%"}}]
[null,"Pajak","Pajak real estat",{"$nulls":3},{"$f":"IFERROR(IF(Pendapatan_Penjualan=0,\"-\",Pajak[[#This Row],[Periode Saat Ini]]/Pendapatan_Penjualan),\"-\")","v":"-"},{"$f":"IFERROR(IF(Pajak[[#This Row],[Periode Sebelumnya]]=Pajak[[#This Row],[Periode Saat Ini]],0,IF(Pajak[[#This Row],[Periode Saat Ini]]>Pajak[[#This Row],[Periode Sebelumnya]],ABS((Pajak[[#This Row],[Periode Saat Ini]]/Pajak[[#This Row],[Periode Sebelumnya]])-1),IF(AND(Pajak[[#This Row],[Periode Saat Ini]]<Pajak[[#This Row],[Periode Sebelumnya]],Pajak[[#This Row],[Periode Sebelumnya]]<0),-((Pajak[[#This Row],[Periode Saat Ini]]/Pajak[[#This Row],[Periode Sebelumnya]])-1),(Pajak[[#This Row],[Periode Saat Ini]]/Pajak[[#This Row],[Periode Sebelumnya]])-1))),\"-\")","v":{"v":0,"d":"0.00%"}},{"$f":"IFERROR(IF(Pajak[[#This Row],[Anggaran]]=Pajak[[#This Row],[Periode Saat Ini]],0,IF(Pajak[[#This Row],[Periode Saat Ini]]>Pajak[[#This Row],[Anggaran]],ABS((Pajak[[#This Row],[Periode Saat Ini]]/Pajak[[#This Row],[Anggaran]])-1),IF(AND(Pajak[[#This Row],[Periode Saat Ini]]<Pajak[[#This Row],[Anggaran]],Pajak[[#This Row],[Anggaran]]<0),-((Pajak[[#This Row],[Periode Saat Ini]]/Pajak[[#This Row],[Anggaran]])-1),(Pajak[[#This Row],[Periode Saat Ini]]/Pajak[[#This Row],[Anggaran]])-1))),\"-\")","v":{"v":0,"d":"0.00%"}}]
[null,"Pajak","Pajak lain (tentukan)",{"$nulls":3},{"$f":"IFERROR(IF(Pendapatan_Penjualan=0,\"-\",Pajak[[#This Row],[Periode Saat Ini]]/Pendapatan_Penjualan),\"-\")","v":"-"},{"$f":"IFERROR(IF(Pajak[[#This Row],[Periode Sebelumnya]]=Pajak[[#This Row],[Periode Saat Ini]],0,IF(Pajak[[#This Row],[Periode Saat Ini]]>Pajak[[#This Row],[Periode Sebelumnya]],ABS((Pajak[[#This Row],[Periode Saat Ini]]/Pajak[[#This Row],[Periode Sebelumnya]])-1),IF(AND(Pajak[[#This Row],[Periode Saat Ini]]<Pajak[[#This Row],[Periode Sebelumnya]],Pajak[[#This Row],[Periode Sebelumnya]]<0),-((Pajak[[#This Row],[Periode Saat Ini]]/Pajak[[#This Row],[Periode Sebelumnya]])-1),(Pajak[[#This Row],[Periode Saat Ini]]/Pajak[[#This Row],[Periode Sebelumnya]])-1))),\"-\")","v":{"v":0,"d":"0.00%"}},{"$f":"IFERROR(IF(Pajak[[#This Row],[Anggaran]]=Pajak[[#This Row],[Periode Saat Ini]],0,IF(Pajak[[#This Row],[Periode Saat Ini]]>Pajak[[#This Row],[Anggaran]],ABS((Pajak[[#This Row],[Periode Saat Ini]]/Pajak[[#This Row],[Anggaran]])-1),IF(AND(Pajak[[#This Row],[Periode Saat Ini]]<Pajak[[#This Row],[Anggaran]],Pajak[[#This Row],[Anggaran]]<0),-((Pajak[[#This Row],[Periode Saat Ini]]/Pajak[[#This Row],[Anggaran]])-1),(Pajak[[#This Row],[Periode Saat Ini]]/Pajak[[#This Row],[Anggaran]])-1))),\"-\")","v":{"v":0,"d":"0.00%"}}]
[null,"Pajak","Pajak lain (tentukan)",{"$nulls":3},{"$f":"IFERROR(IF(Pendapatan_Penjualan=0,\"-\",Pajak[[#This Row],[Periode Saat Ini]]/Pendapatan_Penjualan),\"-\")","v":"-"},{"$f":"IFERROR(IF(Pajak[[#This Row],[Periode Sebelumnya]]=Pajak[[#This Row],[Periode Saat Ini]],0,IF(Pajak[[#This Row],[Periode Saat Ini]]>Pajak[[#This Row],[Periode Sebelumnya]],ABS((Pajak[[#This Row],[Periode Saat Ini]]/Pajak[[#This Row],[Periode Sebelumnya]])-1),IF(AND(Pajak[[#This Row],[Periode Saat Ini]]<Pajak[[#This Row],[Periode Sebelumnya]],Pajak[[#This Row],[Periode Sebelumnya]]<0),-((Pajak[[#This Row],[Periode Saat Ini]]/Pajak[[#This Row],[Periode Sebelumnya]])-1),(Pajak[[#This Row],[Periode Saat Ini]]/Pajak[[#This Row],[Periode Sebelumnya]])-1))),\"-\")","v":{"v":0,"d":"0.00%"}},{"$f":"IFERROR(IF(Pajak[[#This Row],[Anggaran]]=Pajak[[#This Row],[Periode Saat Ini]],0,IF(Pajak[[#This Row],[Periode Saat Ini]]>Pajak[[#This Row],[Anggaran]],ABS((Pajak[[#This Row],[Periode Saat Ini]]/Pajak[[#This Row],[Anggaran]])-1),IF(AND(Pajak[[#This Row],[Periode Saat Ini]]<Pajak[[#This Row],[Anggaran]],Pajak[[#This Row],[Anggaran]]<0),-((Pajak[[#This Row],[Periode Saat Ini]]/Pajak[[#This Row],[Anggaran]])-1),(Pajak[[#This Row],[Periode Saat Ini]]/Pajak[[#This Row],[Anggaran]])-1))),\"-\")","v":{"v":0,"d":"0.00%"}}]
[null,"Total Pajak",null,{"$f":"SUBTOTAL(109,Pajak[Periode Sebelumnya])","v":0},{"$f":"SUBTOTAL(109,Pajak[Anggaran])","v":0},{"$f":"SUBTOTAL(109,Pajak[Periode Saat Ini])","v":0},{"$f":"IFERROR(SUBTOTAL(109,Pajak[Periode Saat Ini dari % Penjualan]),\"-\")","v":{"v":0,"d":"0.00%"}},{"$f":"SUBTOTAL(109,Pajak[% Perubahan dari Periode Sebelumnya])","v":{"v":0,"d":"0.00%"}},{"$f":"SUBTOTAL(109,Pajak[% Perubahan dari Anggaran])","v":{"v":0,"d":"0.00%"}}]

{"sheet":"Kategori","index":5,"n_rows":8,"n_cols":2,"rows_kept":8}
[null,"Kategori"]
[null,"Pendapatan Penjualan"]
[null,"Biaya Penjualan"]
[null,"Penghasilan"]
[null,"Penjualan dan Pemasaran"]
[null,"Riset dan Pengembangan"]
[null,"Umum dan Administrasi"]
[null,"Pajak"]